{"text_format":"3","workbook":"xlsx","n_sheets":1,"sheets":["政府部门"],"not_rendered":{"external_links":1,"defined_names":1},"read":"whole","date_system":"1900"}

{"sheet":"政府部门","index":0,"n_rows":235,"n_cols":19,"rows_kept":235,"merged":[[0,0,0,18],[1,0,3,0],[1,1,3,1],[1,2,3,2],[1,3,2,7],[1,8,1,16],[1,17,3,17],[1,18,3,18],[2,8,3,8],[2,9,3,9],[2,10,2,12],[2,13,3,13],[2,14,3,14],[2,15,3,15],[2,16,3,16],[10,0,11,0],[13,0,14,0],[15,0,16,0],[17,0,19,0],[20,0,25,0],[26,0,29,0],[30,0,34,0],[35,0,37,0],[38,0,41,0],[42,0,44,0],[45,0,46,0],[53,0,54,0],[55,0,59,0],[60,0,63,0],[65,0,65,2],[77,0,78,0],[80,0,81,0],[83,0,85,0],[94,0,94,2],[101,0,105,0],[107,0,108,0],[109,0,112,0],[116,0,116,2],[117,0,122,0],[123,0,123,2],[125,0,126,0],[125,1,126,1],[127,0,128,0],[127,1,128,1],[131,0,134,0],[131,1,134,1],[140,0,141,0],[140,1,141,1],[146,0,147,0],[146,1,147,1],[150,0,151,0],[150,1,151,1],[150,18,151,18],[155,0,156,0],[155,1,156,1],[158,0,159,0],[158,1,159,1],[162,0,163,0],[162,1,163,1],[164,0,165,0],[164,1,165,1],[168,0,169,0],[168,1,169,1],[170,0,171,0],[170,1,171,1],[173,0,174,0],[173,1,174,1],[173,18,174,18],[175,0,178,0],[175,1,178,1],[175,18,176,18],[177,18,178,18],[179,0,180,0],[179,1,180,1],[179,18,180,18],[181,0,181,2],[193,0,194,0],[193,1,194,1],[205,0,207,0],[210,0,211,0],[210,1,211,1],[215,0,216,0],[218,0,219,0],[218,1,219,1],[220,0,221,0],[220,1,221,1],[223,0,224,0],[229,0,230,0],[233,0,233,2],[234,0,234,2]]}
["2020年通辽市事业单位综合类岗位公开招聘岗位表（政府部门）"]
["招聘\n单位","单位\n类别","岗位\n名称","招聘人数",{"$nulls":4},"岗位招聘条件",{"$nulls":8},"招聘单位联系电话","备注"]
[{"$nulls":8},"学历","学位","专业",null,null,"执业\n资格","户籍","其他条件","是否允许二学位专业报考"]
[{"$nulls":3},"合计","普通岗位","项目生","高校毕业生","蒙汉兼通",null,null,"专科","本科","研究生"]
["通辽市中小企业融资服务中心","公益一类","专业技术岗",1,1,{"$nulls":3},"普通高校全日制大学本科及以上","学士及以上",null,"金融学、金融工程、保险学、投资学、会计学、经济学、经济统计学、财政学、审计学、税收学、国际经济与贸易、法学","法学类、会计学、会计、经济学类",null,null,"研究生报本岗位，要求本科所学专业同时满足本科专业栏要求","否","0475-8835360"]
["通辽市高林屯种畜场","公益一类","职员",1,1,{"$nulls":3},"国民教育序列大学专科及以上","不限","不限","不限","不限",null,"通辽市","1.本岗位限残疾人报考，需持有《中华人民共和国残疾人证》，限肢体残疾三级； \n2.具有正常履行岗位职责的身体条件；\n3.能熟练操作计算机。","否","0475-8236742","报名时注明持有的残疾人证编号、残疾类别和残疾等级。"]
["通辽市经济作物工作站","公益一类","财务",1,1,{"$nulls":3},"普通高校全日制大学本科及以上","学士及以上",null,"会计学、财务管理","会计、会计学",null,"通辽市",null,"否","0475-8236742"]
["通辽市固定资产投资审计中心","公益一类","审计员",1,1,{"$nulls":3},"普通高校全日制大学本科及以上","学士及以上",null,"工程造价、土木工程","工程管理","助理工程师",null,null,"否","0475-8836929"]
["通辽市劳动保障信息网络中心","公益一类","网络管理",2,2,{"$nulls":3},"普通高校全日制大学本科及以上","学士及以上",null,"计算机科学与技术、软件工程、网络工程、电子与计算机工程、数据科学与大数据技术、网络空间安全","计算机系统结构、计算机软件与理论、计算机应用技术、软件工程、网络空间安全",null,"不限",null,"否","0475-8580603"]
["通辽市社会保险征缴中心","公益一类","核定、稽核",1,1,{"$nulls":3},"普通高校全日制大学本科及以上","学士及以上",null,"会计学、财务管理、金融学、审计学","会计学、金融学、会计、审计",null,"通辽市","具有两年及以上财务、审计相关工作经历","否","0475-8580680"]
["通辽市人事考试中心","公益\n一类","综合管理岗",1,1,{"$nulls":3},"普通高校全日制大学本科及以上","不限",null,"法学","法学",null,"通辽市",null,"否","0475-8820021"]
[null,"公益\n一类","信息管理岗",1,1,{"$nulls":3},"普通高校全日制大学本科及以上","不限",null,"计算机科学与技术、网络工程","计算机科学与技术、计算机应用技术",null,"通辽市",null,"否","0475-8820021"]
["通辽市军粮供应服务中心","公益一类","财务",1,1,{"$nulls":3},"普通高校全日制大学本科及以上","不限",null,"经济学、会计学、财政学、财务管理、审计学","财政学、会计、统计学会计学、审计",null,"不限",null,"否","0475-6206056"]
["通辽市产品质量计量检测所","公益一类","检验员1",1,1,{"$nulls":3},"普通高校全日制大学本科及以上","学士及以上",null,"测控技术与仪器、食品质量与安全、生物工程、工程造价","理论物理、机械电子工程、计算机软件与理论、计算机应用技术","国家二级注册计量师或人社厅（局）颁发的产品质量检验、计量检定初级及以上职称证或国有公立检验检测机构颁发的检验员、抽样员、评审员证","通辽市","具有检验检测二年及以上工作经历","是","0475-2732107"]
[null,"公益一类","检验员2",1,1,{"$nulls":3},"国民教育序列大学专科及以上","不限","会计电算化、煤炭深加工与利用","化学工程与工艺、机械工程及自动化（机电一体化）、食品科学与工程","理论物理、机械电子工程、计算机软件与理论、计算机应用技术","国家二级注册计量师或人社厅（局）颁发的产品质量检验、计量检定初级及以上职称证或国有公立检验检测机构颁发的检验员、抽样员、评审员证","通辽市","具有检验检测二年及以上工作经历","是","0475-2732107"]
["通辽市社会福利院","公益一类","医生",1,null,1,null,null,"普通高校全日制大学本科及以上","不限",null,"临床医学","临床医学、内科学、儿科学、老年医学",null,"不限",null,"否","0475-8835990"]
[null,"公益一类","综合",1,1,{"$nulls":3},"普通高校全日制大学本科及以上","不限",null,"不限","不限",null,"通辽市",null,"否","0475-8835990"]
["通辽市复退军人精神病院","公益一类","医生",1,null,null,1,null,"普通高校全日制大学本科及以上","不限",null,"放射医学、医学影像学","放射医学",null,"通辽市",null,"否","0475-8835990"]
[null,"公益一类","会计",1,1,{"$nulls":3},"普通高校全日制大学专科及以上","不限","会计","会计学、审计学、税收学、财政学","会计学、审计",null,"通辽市",null,"否","0475-8835990"]
[null,"公益一类","综合",1,1,{"$nulls":3},"普通高校全日制大学本科及以上","不限",null,"不限","不限",null,"通辽市",null,"否","0475-8835990"]
["通辽市体育中学","公益一类","足球教练员",9,9,{"$nulls":3},"国民教育序列大学专科及以上","不限","竞技体育、运动训练","体育教育、运动训练","体育教育训练学、学科教学（体育）","专科学历报考需持有C级及以上足球教练员等级证书或该项目一级运动员及以上称号；本科或研究生学历报考需持有D级或以上足球教练员等级证书；如专业不符需持有C级及以上足球教练员等级证书或该项目一级运动员及以上称号","通辽市","具有两年及以上从事足球教练员工作经历","否","0475-8835688"]
[null,"公益一类","跳跃教练员",1,1,{"$nulls":3},"普通高校全日制大学本科及以上","不限",null,"体育教育、运动训练","体育教育训练学、学科教学（体育）","该项目一级运动员及以上称号","不限","具有两年及以上从事跳跃教练员工作经历","否","0475-8835688"]
[null,"公益一类","射箭教练员",1,1,{"$nulls":3},"普通高校全日制大学本科及以上","不限",null,"体育教育、运动训练","体育教育训练学、学科教学（体育）","该项目运动健将及以上称号","不限","具有两年及以上从事射箭教练员工作经历","否","0475-8835688"]
[null,"公益一类","自行车教练员",1,1,{"$nulls":3},"国民教育序列大学本科及以上","不限",null,"体育教育、运动训练","体育教育训练学、学科教学（体育）","该项目一级运动员及以上称号","不限","具有两年及以上从事自行车教练员工作经历","否","0475-8835688"]
[null,"公益一类","短跑或标枪教练员",1,1,{"$nulls":3},"普通高校全日制大学本科及以上","不限",null,"体育教育、运动训练","体育教育训练学、学科教学（体育）","该项目一级运动员及以上称号","不限","具有两年及以上从事短跑或标枪教练员工作经历","否","0475-8835688"]
[null,"公益一类","曲棍球教练员",1,1,{"$nulls":3},"普通高校全日制大学本科及以上","不限",null,"体育教育、运动训练","体育教育训练学、学科教学（体育）","该项目一级运动员及以上称号","不限","具有两年及以上从事曲棍球教练员工作经历","否","0475-8835688"]
["通辽市住房公积金管理中心","公益一类","职员1",1,1,{"$nulls":3},"普通高校全日制大学本科及以上","学士及以上",null,"统计学、应用统计学","统计学",null,"通辽市","本科学历应具有两年以上工作经历；研究生及以上学历应往届毕业生均可。工作地点在中心机关。","否","0475-8311005"]
[null,"公益一类","党务工作者",1,1,{"$nulls":3},"普通高校全日制大学本科及以上","学士及以上",null,"汉语言文学、新闻学","中国语言文学、语言学及应用语言学、汉语言文字学、新闻学",null,"通辽市","中共党员；本科学历应具有两年以上综合文秘和党建工作经历；研究生及以上学历应往届毕业生均可。工作地点在中心机关。","否","0475-8311005"]
[null,"公益一类","职员2",1,null,null,1,null,"普通高校全日制大学本科及以上","学士及以上",null,"计算机科学与技术、电子信息科学与技术、信息与计算科学、信息管理与信息系统","计算机科学与技术、计算机系统结构、计算机软件与理论、计算机应用技术",null,"不限","工作地点在科左后旗管理部。","否","0475-8311005"]
[null,"公益一类","职员3",1,1,{"$nulls":3},"普通高校全日制大学本科及以上","学士及以上",null,"财务管理、会计学、经济学、金融学、投资学、国际经济与贸易","会计学、金融学",null,"通辽市","本科学历应具有两年以上工作经历；研究生及以上学历应往届毕业生均可；工作地点在开鲁县管理部。","否","0475-8311005"]
["通辽市市政工程处","公益二类","技术员1",1,null,null,1,null,"普通高校全日制大学本科及以上","不限",null,"电气工程及其自动化、自动化、电子科学与技术、信息工程、电子信息工程","电力系统及其自动化、电气工程、电机与电器、电工理论与新技术、通信与信息系统",null,"通辽市",null,"否","0475-8233502"]
[null,"公益二类","技术员2",1,null,null,1,null,"普通高校全日制大学本科及以上","不限",null,"土木工程、给水排水工程、建筑环境与设备工程、道路桥梁与渡河工程、城市地下空间工程","土木工程、市政工程、桥梁与隧道工程、结构工程、防灾减灾工程及防护工程",null,"通辽市",null,"否","0475-8233502"]
[null,"公益二类","技术员3",1,null,null,1,null,"普通高校全日制大学本科及以上","不限",null,"测绘工程、导航工程、地理国情监测、勘查技术与工程、城市规划","测绘科学与技术、大地测量学与测量工程、摄影测量与遥感",null,"通辽市",null,"否","0475-8233502"]
[null,"公益二类","文秘",1,null,1,null,null,"普通高校全日制大学本科及以上","不限",null,"汉语言、汉语言文学、秘书学、网络与新媒体","汉语言文字学、中国语言文学、文艺学、语言学及应用语言学、中国现当代文学",null,"不限",null,"否","0475-8233502"]
[null,"公益二类","职员",1,{"$nulls":3},1,"普通高校全日制大学本科及以上","不限",null,"工程管理、管理科学","管理科学与工程",null,"通辽市",null,"否","0475-8233502"]
["通辽市园林管理局","公益二类","财务",2,1,null,1,null,"普通高校全日制大学本科及以上","学士及以上",null,"财务管理、会计学、审计学、财政学、税收学","会计学、企业管理（财务管理方向）、财政学（税收学方向）、统计学、金融学","具有初级会计职称证书","通辽市","普通岗具有两年以上财会工作经验","否","0475-8882007"]
[null,"公益二类","人事专员",1,{"$nulls":3},1,"普通高校全日制大学本科及以上","学士及以上",null,"人力资源管理、行政管理、劳动与社会保障、档案学、劳动关系","企业管理（人力资源管理方向）、档案学、行政管理、社会保障、民商法学（社会保障法学）",null,"通辽市",null,"否","0475-8882007"]
[null,"公益二类","工程造价员",1,null,null,1,null,"普通高校全日制大学本科及以上","学士及以上",null,"工程造价、土木工程（工程造价方向）、土木工程（建筑工程方向）、工程管理、园林","土木工程、园林植物与观赏园艺、植物病理学、城市规划与设计（含风景园林规划与设计）、果树学",null,"通辽市",null,"否","0475-8882007"]
["通辽市排水管理处","公益二类","法制科员",1,null,null,1,null,"普通高校全日制大学本科（不含专升本）及以上","学士及以上",null,"法学","法律、法律（法学）",null,"通辽市",null,"否","0475-8433009"]
[null,"公益二类","会计员",1,null,null,1,null,"普通高校全日制大学本科（不含专升本）及以上","学士及以上",null,"应用统计学、经济统计学、统计学","应用统计、统计学",null,"通辽市",null,"否","0475-8433009"]
[null,"公益二类","技术员1",1,null,null,1,null,"普通高校全日制大学本科（不含专升本）及以上","学士及以上",null,"机械工程、机械电子工程、机械设计制造及其自动化、机械工艺技术","机械、机械工程、机械制造及其自动化、机械设计及理论",null,"通辽市",null,"否","0475-8433009"]
[null,"公益二类","技术员2",1,null,1,null,null,"普通高校全日制大学本科（不含专升本）及以上","学士及以上",null,"网络工程、计算机科学与技术、软件工程、电子与计算机工程","计算机科学与技术、计算机软件与理论、计算机应用技术",null,"不限",null,"否","0475-8433009"]
["通辽市雨水泵站","公益一类","技术员",1,null,1,null,null,"普通高校全日制大学本科（不含专升本）及以上","学士及以上",null,"给排水科学与工程、土木工程、水利水电工程、测绘工程","土木工程、水利水电工程、测绘科学与技术、建筑技术科学",null,"不限",null,"否","0475-8433009"]
[null,"公益一类","会计员",1,{"$nulls":3},1,"普通高校全日制大学本科（不含专升本）及以上","学士及以上",null,"会计学、财政学、经济学、金融学、财务管理","会计、会计学、应用经济学、财政学、金融学","具有中级会计师资格证","通辽市","具有两年以上财会工作经验","否","0475-8433009"]
[null,"公益一类","化验员",1,null,null,1,null,"普通高校全日制大学本科（不含专升本）及以上","学士及以上",null,"化学、应用化学、化学工程与工艺、环境科学与工程","化学、应用化学、化学工艺、化学工程、环境科学与工程",null,"通辽市",null,"否","0475-8433009"]
["通辽市人防指挥信息保障中心","公益一类","规划专员",1,1,{"$nulls":3},"普通高校全日制大学本科及以上","学士及以上",null,"城市规划、资源环境与城乡规划管理、人文地理与城乡规划、城乡规划、建筑环境与设备工程","城市规划与设计（含风景园林规划与设计）、防灾减灾工程及防护工程 ",null,"通辽市",null,"否","0475-6387956"]
[null,"公益一类","无线通信技术员",2,null,1,null,1,"普通高校全日制大学本科及以上","学士及以上",null,"电气类、电子信息类、计算机类、管理科学与工程类、工商管理类","电气工程、计算机科学与技术、信息与通信工程、控制科学与工程、电子科学与技术",{"$nulls":3},"否","0475-6387956"]
["通辽市人防工程质量维护管理站","公益二类","工程管理",1,null,null,1,null,"普通高校全日制大学本科及以上","学士及以上",null,"土木工程、工程管理、工程造价、给排水科学与工程、建筑电气与智能化","管理科学与工程",null,"通辽市",null,"否","0475-6387677"]
["通辽市人防工程质量监督管理站","公益一类","工程技术",1,null,null,1,null,"普通高校全日制大学本科及以上","学士及以上",null,"土木工程、给排水科学与工程、建筑电气与智能化","岩土工程、结构工程、供热、供燃气、通风及空调工程、防灾减灾工程及防护工程",null,"通辽市",null,"否","0475-6387677"]
["通辽市台河口水利枢纽管理处","公益一类","财务",1,null,null,1,null,"普通高校全日制大学本科及以上","学士及以上",null,"会计学、财务管理、审计学","会计学",null,"通辽市",null,"否","0475-8214892"]
["通辽市辽河供水管理处","公益一类","会计",1,1,{"$nulls":3},"普通高校全日制大学本科及以上","不限",null,"会计学、财务管理、审计学","会计学",null,"不限",null,"否","0475-8718577"]
["通辽市吐尔吉山水库灌区管理处","公益二类","专技  ",1,null,null,1,null,"普通高校全日制大学本科及以上","不限",null,"人力资源管理、应用化学","应用化学",null,"通辽市",null,"否","0475-8214715"]
["通辽市图书馆","公益一类","财务",1,1,{"$nulls":3},"国民教育序列大学专科及以上","不限","财务管理、会计","会计学、财务管理","会计学","初级会计师及以上","不限","无","否","0475-6182107"]
["通辽市微波管理总站","公益一类","广播电视微波技术",5,2,1,2,null,"普通高校全日制大学专科及以上","不限","计算机应用技术、计算机网络技术、计算机多媒体技术、计算机系统维护、计算机硬件与外设、计算机信息管理、网络系统管理、软件技术、电子信息工程技术、应用电子技术、电子测量技术与仪器、电子仪器仪表与维修、电子设备与运行管理、信息安全技术、无线电技术、广播电视网络技术、通信技术、计算机通信、通信系统运行管理、机械制造与自动化、广播电视技术、机电一体化技术、电气自动化技术               ","电气工程及其自动化、电子信息工程、电子科学与技术、计算机科学与技术、软件工程、自动化、机械设计制造及其自动化、机械电子工程、广播电视工程、电子信息科学与技术、通信工程    ","电路与系统、通信与信息系统、信号与信息处理、计算机应用技术",null,"通辽市，项目生岗不限户籍","从事边远野外高山基层微波站值班及技术维护工作(开鲁微波站、红旗微波站、罕山微波站、五家子微波站等)","否","0475-8835597"]
[null,"公益一类","财会",1,1,{"$nulls":3},"普通高校全日制大学专科及以上","不限","财务管理、财务信息管理、会计、会计电算化、会计与统计核算、会计与审计  ","财务管理、会计学、审计学","会计、会计学",null,"通辽市",null,"否","0475-8835597"]
["通辽广播电视台","公益二类","摄像",5,3,null,null,2,"普通高校全日制大学专科及以上","不限","影视动画、摄影摄像技术、摄影与摄像艺术、新闻采编与制作、计算机信息管理、电子信息工程","摄影、绘画、计算机科学与技术、教育技术学、信息管理与信息系统","不限",null,"通辽市户籍","1.摄像岗位需要承受摄像机和三脚架等近40斤重量的体能要求，还经常承担下乡或外出任务，适合男性报考；\n2.报考本岗位的研究生，全日制专科或本科所学专业须满足对应专业栏要求。","否","0475-8237327","面试采取实际操作"]
[null,"公益二类","女播音主持",2,null,1,1,null,"普通高校全日制大学专科及以上","不限","播音与主持","播音与主持艺术","不限","国家普通话水平测试一级乙等及以上证书或持有内蒙古自治区蒙古语标准音水平一级乙等及以上证书；\n持有国家新闻出版广电总局颁发的“广播电视播音员主持人资格考试合格证”的专业不限、普通话水平不限。","通辽市，项目生岗不限户籍","1.女生身高1.65米以上，五官端正，口齿伶俐；\n2.报考本岗位的研究生，全日制大专专业须为播音与主持或全日制大学本科专业为播音与主持艺术","否","0475-8237327","面试采取实际操作"]
[null,"公益二类","男播音主持",4,1,1,1,1,"普通高校全日制大学专科及以上","不限","播音与主持","播音与主持艺术","不限","国家普通话水平测试一级乙等及以上证书或持有内蒙古自治区蒙古语标准音水平一级乙等及以上证书；\n持有国家新闻出版广电总局颁发的“广播电视播音员主持人资格考试合格证”的专业不限、普通话水平不限。","通辽市，项目生岗不限户籍","1.男生身高1.75米以上，五官端正，口齿伶俐；\n2.报考本岗位的研究生，全日制大专专业须为播音与主持或全日制大学本科专业为播音与主持艺术","否","0475-8237327","面试采取实际操作"]
[null,"公益二类","新媒体编辑",2,1,null,1,null,"普通高校全日制大学本科及以上","学士及以上",null,"动画、广播电视学、广播电视编导、网络与新媒体","广播电视",null,"通辽市",null,"否","0475-8237327","面试采取实际操作"]
[null,"公益二类","编辑记者",2,1,null,1,null,"普通高校全日制大学本科及以上","学士及以上",null,"新闻学、编辑出版学、广播电视编导、广播电视学、中国少数民族语言文学、汉语言文学","新闻传播学、新闻学、传播学、广播电视","持有国家新闻出版广电总局颁发的“广播电视编辑记者资格考试合格证”的专业不限。","通辽市",null,"否","0475-8237327","面试采取实际操作"]
["通辽市森林公园管理处","公益一类","职员1",1,1,{"$nulls":3},"普通高校全日制大学本科及以上","学士及以上",null,"林学、园林、森林保护    ","森林保护学、森林经理学",null,"通辽市",null,"否","0475-6395015"]
[null,"公益一类","职员2",1,1,{"$nulls":3},"普通高校全日制大学本科及以上","学士及以上",null,"植物保护、园艺、风景园林","园林植物与观赏园艺",null,"通辽市",null,"否","0475-6395015"]
[null,"公益一类","职员3",1,1,{"$nulls":3},"普通高校全日制大学本科及以上","学士及以上",null,"艺术设计学、广告学、视觉传达设计","设计艺术学、美术学",null,"通辽市",null,"否","0475-6395015"]
[null,"公益一类","财务",1,1,{"$nulls":3},"普通高校全日制大学本科及以上","学士及以上",null,"财务管理、会计学、审计学","会计学",null,"通辽市",null,"否","0475-6395015"]
["通辽市林业和草原局机关事务服务中心","公益一类","财务",1,1,{"$nulls":3},"普通高校全日制大学本科及以上","学士及以上",null,"财务管理、会计学、审计学","会计学",null,"通辽市",null,"否","0475-6395015"]
["市直小计",null,null,{"$f":"SUM(D5:D65)","v":86},{"$f":"SUM(E5:E65)","v":50},{"$f":"SUM(F5:F65)","v":8},{"$f":"SUM(G5:G65)","v":21},{"$f":"SUM(H5:H65)","v":7}]
["开鲁县财会岗相关单位1","公益一类","财会",4,null,null,4,null,"普通高校全日制大学本科及以上","学士及以上",null,"经济学、经济统计学、财政学、税收学、金融学、金融工程、国际经济与贸易、贸易经济、统计学、应用统计学、市场营销、会计学、财务管理、国际商务、审计学、经济与金融","应用经济学、国民经济学、区域经济学、财政学、金融学、产业经济学、国际贸易学、劳动经济学、统计学、国防经济、统计学、金融、应用统计、国际商务、审计",null,"限通辽市户籍","最低服务期限五年（含试用期）","否","0475-6212575","开鲁县中心敬老院1人，开鲁县文化馆1人，开鲁县大榆树镇政府党群服务中心2人。按总成绩从高分到低分的顺序考生自主选择具体单位。"]
["开鲁县财会岗相关单位2","公益一类","财会",4,null,null,4,null,"普通高校全日制大学专科及以上","不限","财政、税务、金融管理、财务管理、会计、审计、会计信息管理、信息统计与分析、统计与会计核算、国际经济与贸易、会计电算化、会计与审计","经济学、经济统计学、财政学、税收学、金融学、金融工程、国际经济与贸易、贸易经济、统计学、应用统计学、市场营销、会计学、财务管理、国际商务、审计学、经济与金融","应用经济学、国民经济学、区域经济学、财政学、金融学、产业经济学、国际贸易学、劳动经济学、统计学、国防经济、统计学、金融、应用统计、国际商务、审计",null,"限通辽市户籍","最低服务期限五年（含试用期）","否","0475-6212575","开鲁县水利规划建设服务中心1人，开鲁县河道堤防养护所1人，开鲁县黑龙坝镇政府综合保障和技术推广中心1人，开鲁县东风镇人民政府党群服务中心1人。按总成绩从高分到低分的顺序考生自主选择具体单位。"]
["开鲁县文秘岗相关单位1","公益一类","文秘",2,null,null,2,null,"普通高校全日制大学本科及以上","学士及以上",null,"汉语言文学、汉语言、新闻学、广播电视学、秘书学、应用语言学、思想政治教育、公共事业管理、行政管理、法学、网络与新媒体","中国语言文学、文艺学、语言学及应用语言学、汉语言文字学、中国古典文献学、中国古代文学、中国现当代文学、中国少数民族语言文学、比较文学与世界文学、新闻传播学、新闻学、传播学、法学",null,"限通辽市户籍","最低服务期限五年（含试用期）","否","0475-6212575","开鲁县地方道路养护段1人，开鲁县企业服务中心1人。按总成绩从高分到低分的顺序考生自主选择具体单位。"]
["开鲁县文秘岗相关单位2","公益一类","文秘",2,null,2,null,null,"普通高校全日制大学本科及以上","学士及以上",null,"汉语言文学、汉语言、新闻学、广播电视学、秘书学、应用语言学、思想政治教育、公共事业管理、行政管理、法学、网络与新媒体","中国语言文学、文艺学、语言学及应用语言学、汉语言文字学、中国古典文献学、中国古代文学、中国现当代文学、中国少数民族语言文学、比较文学与世界文学、新闻传播学、新闻学、传播学、法学",null,null,"最低服务期限五年（含试用期）","否","0475-6212575","开鲁县地方道路养护段1人，开鲁县企业服务中心1人。按总成绩从高分到低分的顺序考生自主选择具体单位。"]
["开鲁县文秘岗相关单位3","公益一类","文秘",4,null,null,4,null,"普通高校全日制大学专科及以上","不限","文秘、文秘速录、新闻采编与制作、法律文秘、汉语、语文教育","汉语言文学、汉语言、新闻学、广播电视学、秘书学、应用语言学、思想政治教育、公共事业管理、行政管理、法学、网络与新媒体","中国语言文学、文艺学、语言学及应用语言学、汉语言文字学、中国古典文献学、中国古代文学、中国现当代文学、中国少数民族语言文学、比较文学与世界文学、新闻传播学、新闻学、传播学、法学",null,"限开鲁县户籍","最低服务期限五年（含试用期）","否","0475-6212575","开鲁县义和塔拉镇人民政府党群服务中心1人，开鲁县建华镇人民政府党群服务中心2人，开鲁县麦新镇人民政府党群服务中心1人。按总成绩从高分到低分的顺序考生自主选择具体单位。"]
["开鲁县地方道路养护段","公益一类","财会",1,null,1,null,null,"普通高校全日制大学本科及以上","学士及以上",null,"经济学、经济统计学、财政学、税收学、金融学、金融工程、国际经济与贸易、贸易经济、统计学、应用统计学、市场营销、会计学、财务管理、国际商务、审计学、经济与金融","应用经济学、国民经济学、区域经济学、财政学、金融学、产业经济学、国际贸易学、劳动经济学、统计学、国防经济、统计学、金融、应用统计、国际商务、审计",null,null,"最低服务期限五年（含试用期）","否","0475-6212575"]
["开鲁县救助家庭经济状况核对中心","公益一类","核查员",2,null,1,1,null,"普通高校全日制大学本科及以上","学士及以上",null,"计算机科学与技术、软件工程、网络工程、信息安全、物联网工程、数字媒体技术、电子信息工程、电子科学与技术、通信工程、微电子科学与工程、光电信息科学与工程、信息工程、智能科学与技术、空间信息与数字技术、电子与计算机工程","电子科学与技术、计算机科学与技术、计算机系统结构、计算机软件与理论、计算机应用技术、信息与通信工程、通信与信息系统",null,null,"最低服务期限五年（含试用期）","否","0475-6212575"]
["开鲁县设施农业发展中心","公益一类","职员",2,null,null,2,null,"普通高校全日制大学本科及以上","学士及以上",null,"农学、园艺、植物保护、植物科学与技术、种子科学与工程、设施农业科学与工程、农业资源与环境、野生动物与自然保护区管理、水土保持与荒漠化防治","作物学、作物栽培学与耕作学、作物遗传育种、园艺学、果树学、蔬菜学、茶学、农业资源与环境、土壤学、植物营养学、植物保护、植物病理学、农业、农艺与种业、资源利用与植物保护、农业工程与信息技术、农业管理",null,"限通辽市户籍","最低服务期限五年（含试用期）","否","0475-6212575"]
["开鲁县果树技术指导站","公益一类","技术员",2,null,null,2,null,"普通高校全日制大学本科及以上","学士及以上",null,"农业资源与环境、野生动物与自然保护区管理、水土保持与荒漠化防治、林学、园林、森林保护、草业科学、森林工程、木材科学与工程、林产化工","不限",null,"限通辽市户籍","最低服务期限五年（含试用期），录用后经常下乡驻村，适合男性报考。","否","0475-6212575"]
["开鲁县绿色食品发展中心","公益一类","职员",1,null,null,1,null,"普通高校全日制大学本科及以上","学士及以上",null,"食品科学与工程、食品质量与安全、食品卫生与营养学、药物分析、药物化学","食品科学、食品科学与工程、食品加工与安全、营养与食品卫生学、药物化学、药物分析学",null,"限通辽市户籍","最低服务期限五年（含试用期）","否","0475-6212575"]
["开鲁县文化健体中心","公益一类","社会体育指导员",1,null,null,1,null,"普通高校全日制大学本科及以上","学士及以上",null,"体育教育、运动训练、社会体育指导与管理、运动人体科学、运动康复、休闲体育、体能训练","体育人文社会学",null,"限通辽市户籍","最低服务期限五年（含试用期）","否","0475-6212575"]
["开鲁县民族事务服务中心","公益一类","职员1",1,{"$nulls":3},1,"普通高校全日制大学本科及以上","学士及以上",null,"不限","不限",null,"限通辽市户籍","最低服务期限五年（含试用期）","否","0475-6212575"]
[null,"公益一类","职员2",1,null,1,null,null,"普通高校全日制大学专科及以上","不限","不限","不限","不限",null,null,"最低服务期限五年（含试用期）","否","0475-6212575"]
["开鲁县扶贫信息中心","公益一类","职员",1,null,1,null,null,"普通高校全日制大学本科及以上","学士及以上",null,"不限","不限",null,null,"最低服务期限五年（含试用期）","否","0475-6212575"]
["开鲁县河道堤防养护所","公益一类","职员1",1,1,{"$nulls":3},"普通高校全日制大学专科及以上","不限","不限","不限","不限",null,"限通辽市户籍","最低服务期限五年（含试用期）","否","0475-6212575"]
[null,"公益一类","职员2",2,null,null,2,null,"普通高校全日制大学专科及以上","不限","水文与水资源工程、水文测报技术、水政水资源管理、水利工程、水利水电工程技术、水利水电工程管理、水利水电建筑工程、机电排灌工程技术、港口航道与治河工程、水务管理、水土保持技术、水环境监测与治理","水利水电工程、水文与水资源工程、港口航道与海岸工程、水务工程、农业水利工程、水土保持与荒漠化防治","水利工程、水文学及水资源、水工结构工程、水利水电工程、港口、海岸及近海工程",null,"限通辽市户籍","最低服务期限五年（含试用期）","否","0475-6212575"]
["开鲁县公证处","公益二类","公证员",1,1,{"$nulls":3},"普通高校全日制大学专科及以上","不限","不限","不限","不限","A类或C类法律职业资格证","限通辽市户籍","最低服务期限五年（含试用期）","否","0475-6212575"]
["开鲁县安监信息中心","公益一类","财务",1,null,1,null,null,"普通高校全日制大学专科及以上","不限","财政、税务、金融管理、财务管理、会计、审计、会计信息管理、信息统计与分析、统计与会计核算、国际经济与贸易、会计电算化、会计与审计","经济学、经济统计学、财政学、税收学、金融学、金融工程、国际经济与贸易、贸易经济、统计学、应用统计学、市场营销、会计学、财务管理、国际商务、审计学、经济与金融","应用经济学、国民经济学、区域经济学、财政学、金融学、产业经济学、国际贸易学、劳动经济学、统计学、国防经济、统计学、金融、应用统计、国际商务、审计",null,null,"最低服务期限五年（含试用期）","否","0475-6212575"]
[null,"公益一类","职员",1,null,null,1,null,"普通高校全日制大学专科及以上","不限","计算机应用技术、计算机网络技术、计算机信息管理、计算机系统与维护、软件技术、软件与信息服务、嵌入式技术与应用、数字展示技术、数字媒体应用技术、信息安全与管理、移动应用开发、云计算技术与应用、电子商务技术、电子信息工程技术、应用电子技术、通信技术","计算机科学与技术、软件工程、网络工程、信息安全、物联网工程、数字媒体技术、电子信息工程、电子科学与技术、通信工程、微电子科学与工程、光电信息科学与工程、信息工程、智能科学与技术、空间信息与数字技术、电子与计算机工程","电子科学与技术、计算机科学与技术、计算机系统结构、计算机软件与理论、计算机应用技术、信息与通信工程、通信与信息系统",null,"限通辽市户籍","最低服务期限五年（含试用期）","否","0475-6212575"]
[null,"公益一类","文秘",1,null,1,null,null,"普通高校全日制大学专科及以上","不限","文秘、文秘速录、新闻采编与制作、法律文秘、汉语、语文教育","汉语言文学、汉语言、新闻学、广播电视学、秘书学、应用语言学、思想政治教育、公共事业管理、行政管理、法学、网络与新媒体","中国语言文学、文艺学、语言学及应用语言学、汉语言文字学、中国古典文献学、中国古代文学、中国现当代文学、中国少数民族语言文学、比较文学与世界文学、新闻传播学、新闻学、传播学、法学",null,null,"最低服务期限五年（含试用期）","否","0475-6212575"]
["开鲁县市场监督检验检测中心","公益一类","职员",4,2,2,null,null,"普通高校全日制大学专科及以上","不限","食品质量与安全、食品检测技术、食品营养与卫生、食品营养与检测、药品经营与管理、药品服务与管理、保健品开发与管理、化妆品经营与管理、食品生物技术、药品生物技术、药品质量与安全","食品科学与工程、食品质量与安全、食品卫生与营养学、药物分析、药物化学","食品科学、食品科学与工程、食品加工与安全、营养与食品卫生学、药物化学、药物分析学",null,null,"最低服务期限五年（含试用期）","否","0475-6212575"]
["开鲁县家畜改良工作站","公益一类","职员",2,1,1,null,null,"普通高校全日制大学专科及以上","不限","畜牧兽医、动物医学、动物药学、动物防疫与检疫、动物医学检验技术、畜牧业经济管理","动物科学、动物医学、动物药学、动植物检疫","畜牧学、动物遗传育种与繁殖、动物营养与饲料科学、特种经济动物饲养、兽医学、基础兽医学、预防兽医学、临床兽医学、畜牧、兽医、生物学、动物学",null,null,"最低服务期限五年（含试用期，）录用后需到养殖场指导、操作人工授精工作，适合男性报考","否","0475-6212575"]
["开鲁县东来镇人民政府党群服务中心","公益一类","职员",2,2,{"$nulls":3},"普通高校全日制大学专科及以上","不限","不限","不限","不限",null,"限开鲁县户籍","最低服务期限五年（含试用期）","否","0475-6212575"]
["开鲁县黑龙坝镇政府综合保障和技术推广中心","公益一类","职员",1,1,{"$nulls":3},"普通高校全日制大学专科及以上","不限","不限","不限","不限",null,"限开鲁县户籍","最低服务期限五年（含试用期）","否","0475-6212575"]
["开鲁县麦新镇人民政府综合执法局","公益一类","职员",1,1,{"$nulls":3},"普通高校全日制大学专科及以上","不限","治安管理、公共安全管理、法律文秘、法律事务、行政执行","法学、治安学、心理学、 应用心理学、信息安全、工商管理","法学、应用心理、心理健康教育、工商管理",null,"限开鲁县户籍","最低服务期限五年（含试用期）","否","0475-6212575"]
["开鲁县东风镇人民政府综合执法局","公益一类","林草职员",1,null,null,1,null,"普通高校全日制大学专科及以上","不限","林业技术、园林技术、森林资源保护、经济林培育与利用、野生植物资源保护与利用、野生动物资源保护与利用、森林生态旅游、森林防火指挥与通讯、自然保护区建设与管理、木工设备应用技术、木材加工技术、林业调查与信息处理、林业信息技术与管理","不限","不限",null,"限开鲁县户籍","最低服务期限五年（含试用期）","否","0475-6212575"]
["开鲁县东风镇人民政府党群服务中心","公益一类","旅游电商职员",1,null,null,1,null,"普通高校全日制大学专科及以上","不限","旅游管理、景区开发与管理、电子商务、网络营销、物流管理","不限","不限",null,"限通辽市户籍","最低服务期限五年（含试用期）","否","0475-6212575"]
["开鲁县义和塔拉镇人民政府综合保障和技术推广中心","公益一类","职员",1,null,null,1,null,"普通高校全日制大学专科及以上","不限","农业经济管理、农村经营管理、现代农业技术、林业技术、经济林培育与利用、动物防疫与检疫、草业技术","农学、植物科学与技术、农业资源与环境、水土保持与荒漠化防治、动物科学、林学、草业科学、农林经济管理、农村区域发展","作物学、作物栽培学与耕作学、农业昆虫与害虫防治、畜牧学、林学、水土保持与荒漠化防治、农林经济管理、农业经济管理、林业经济管理、农业、畜牧、农业管理、林业、农业昆虫与害虫防治、林学、草学、农业、林业",null,"限开鲁县户籍","最低服务期限五年（含试用期）","否","0475-6212575"]
["开鲁小计",null,null,{"$f":"SUM(D67:D94)","v":48},{"$f":"SUM(E67:E94)","v":9},{"$f":"SUM(F67:F94)","v":11},{"$f":"SUM(G67:G94)","v":27},{"$f":"SUM(H67:H94)","v":1}]
["奈曼旗统计普查中心","公益一类","职员",1,{"$nulls":3},1,"普通高校全日制大学本科及以上","学士及以上",null,"统计学、应用统计学、数学与应用数学、信息与计算机科学、经济学、经济统计学、会计学","统计学、数学、经济学、会计学",null,"通辽市","因工作需要经常下乡，适合男性报考。限在本单位最低服务期限5年（含试用期）。","是","0475-4213400"]
["奈曼旗节能服务中心","公益一类","职员 ",1,null,1,null,null,"普通高校全日制大学本科及以上","学士及以上",null,"不限","不限",null,"不限","因工作需要经常下乡，适合男性报考。限在奈曼旗最低服务期限3年（含试用期）。","是","0475-4213400"]
["奈曼旗劳务服务中心","公益一类","职员",1,1,{"$nulls":3},"普通高校全日制大学本科及以上","学士及以上",null,"不限","不限",null,"奈曼旗","限在奈曼旗最低服务期限3年（含试用期）。","是","0475-4213400"]
["奈曼旗城乡居民养老保险管理中心","公益一类","职员",1,null,1,null,null,"普通高校全日制大学本科及以上","学士及以上",null,"不限","不限",null,"不限","限在奈曼旗最低服务期限3年（含试用期）。","是","0475-4213400"]
["奈曼旗不动产登记中心","公益一类","职员",1,null,null,1,null,"普通高校全日制大学本科及以上","学士及以上",null,"法学","法学理论、法学史、宪法学与行政法学、刑法学、民商法学、诉讼法学、经济法学",null,"不限","限在奈曼旗最低服务期限3年（含试用期）。","是","0475-4213400"]
["奈曼旗工业园区管理中心","公益一类","职员 ",1,null,1,null,null,"普通高校全日制大学本科及以上","学士及以上",null,"秘书学、应用语言学、汉语言文学、汉语言","汉语言文字学、政治学理论",null,"不限","限在奈曼旗最低服务期限3年（含试用期）。","是","0475-4213400"]
["奈曼旗市政园林环卫管理所","公益一类","职员1",1,null,null,1,null,"普通高校全日制大学专科及以上",null,"园林工程技术、园林技术","风景园林","风景园林学",null,"奈曼旗","限在奈曼旗最低服务期限3年（含试用期）。","是","0475-4213400"]
[null,"公益一类","职员2",1,null,1,null,null,"普通高校全日制大学专科及以上",null,"电子政务、劳动与社会保障、公共关系、行政管理","信息资源管理、劳动与社会保障、档案学","公共管理",null,"不限","限在奈曼旗最低服务期限3年（含试用期）。","是","0475-4213400"]
[null,"公益一类","职员3",1,null,null,1,null,"普通高校全日制大学本科及以上","学士及以上",null,"秘书学、应用语言学、汉语言文学、汉语言","语言学及应用语言学、汉语言文字学",null,"奈曼旗","限在奈曼旗最低服务期限3年（含试用期）。","是","0475-4213400"]
[null,"公益一类","职员4",1,null,null,1,null,"普通高校全日制大学本科及以上","学士及以上",null,"会计学、财务管理、审计学、财政学","会计学","具有初级及以上会计资格证书","奈曼旗","限在奈曼旗最低服务期限3年（含试用期）。","是","0475-4213400"]
[null,"公益一类","职员5",1,null,1,null,null,"普通高校全日制大学本科及以上","学士及以上",null,"不限","不限",null,"不限","限在奈曼旗最低服务期限3年（含试用期）。","是","0475-4213400"]
["奈曼旗军队离退休干部服务站","公益一类","职员",1,null,null,1,null,"普通高校全日制大学本科及以上","学士及以上",null,"汉语言文学、汉语言、新闻学、秘书学、应用语言学","语言学及应用语言学、汉语言文字学",null,"奈曼旗","限在奈曼旗最低服务期限3年（含试用期）。","是","0475-4213400"]
["奈曼旗审计局计算机审计服务中心","公益一类","职员1",1,null,1,null,null,"普通高校全日制大学本科及以上","学士及以上",null,"会计学、财务管理、审计学、财政学、税收学","财政学、会计学",null,"不限","限在本单位最低服务期限5年（含试用期）。","是","0475-4213400"]
[null,"公益一类","职员2",2,1,null,1,null,"普通高校全日制大学本科及以上","学士及以上",null,"会计学、财务管理、审计学、财政学、税收学","财政学、会计学",null,"奈曼旗","限在本单位最低服务期限5年（含试用期）。","是","0475-4213400"]
["奈曼旗地方道路管理段","公益一类","职员1",5,4,null,null,1,"普通高校全日制大学专科及以上",null,"道路桥梁工程技术、高等级公路维护与管理、工程测量与监理","道路桥梁与渡河工程、交通工程、土木工程","桥梁与隧道工程、道路与铁道工程",null,"通辽市","限在本单位最低服务期限5年（含试用期）。","是","0475-4213400"]
[null,"公益一类","职员2",2,null,2,null,null,"普通高校全日制大学专科及以上",null,"道路桥梁工程技术、高等级公路维护与管理、工程测量与监理","道路桥梁与渡河工程、交通工程、土木工程","桥梁与隧道工程、道路与铁道工程",null,"不限","限在本单位最低服务期限5年（含试用期）。","是","0475-4213400"]
[null,"公益一类","职员3",1,null,1,null,null,"普通高校全日制大学本科及以上","学士及以上",null,"经济学、经济统计学、会计学、财务管理、金融学、财政学","政治经济学、统计学、会计学、金融学、财政学",null,"不限","限在本单位最低服务期限5年（含试用期）。","是","0475-4213400"]
[null,"公益一类","职员4",1,1,{"$nulls":3},"普通高校全日制大学本科及以上","学士及以上",null,"经济学、经济统计学、会计学、财务管理、金融学、财政学","政治经济学、统计学、会计学、金融学、财政学",null,"奈曼旗","限在本单位最低服务期限5年（含试用期）。","是","0475-4213400"]
["奈曼旗农业技术推广中心","公益一类","职员",1,null,null,1,null,"普通高校全日制大学本科及以上","学士及以上",null,"农学、园艺、植物保护","作物栽培学与耕作学、作物遗传育种、植物营养学、果树学",null,"奈曼旗","限在奈曼旗最低服务期限3年（含试用期）。","是","0475-4213400"]
["奈曼旗水产技术推广站","公益一类","职员",1,1,{"$nulls":3},"普通高校全日制大学专科及以上",null,"自然保护区建设与管理、水产养殖技术、水生动植物保护","野生动物与自然保护区管理、水土保持与荒漠化防治、 水族科学与技术","野生动植物保护与利用、水土保持与荒漠化防治",null,"奈曼旗","限在奈曼旗最低服务期限3年（含试用期）。","是","0475-4213400"]
["奈曼旗动物疫病预防控制中心","公益一类","职员",1,null,1,null,null,"普通高校全日制大学本科及以上","学士及以上",null,"动物医学、生物技术、动物药学","基础兽医学、动物学",null,"不限","限在奈曼旗最低服务期限3年（含试用期）。","是","0475-4213400"]
["奈曼小计",null,null,{"$f":"SUM(D96:D116)","v":27},{"$f":"SUM(E96:E116)","v":8},{"$f":"SUM(F96:F116)","v":10},{"$f":"SUM(G96:G116)","v":7},{"$f":"SUM(H96:H116)","v":2}]
["科左后旗国有林场","公益一类","财务",6,null,3,3,null,"普通高校全日制大学本科及以上","学士及以上",null,"会计学、财务管理、审计学、财政学、金融学","会计学、林业经济管理、财政学、金融学","不限","项目生岗不限户籍，其他岗位为通辽市户籍","最低服务期5年（含试用期）","否","\n0475-5212114","茂道吐林场（1人）朝鲁吐林场（1人）乌旦塔拉林场（1人）伊胡塔林场（1人）金宝屯林场（1人）大青沟林场（1人）按总成绩从高分到低分的顺序考生自主选择具体单位。"]
[null,"公益一类","技术员1",12,null,6,6,null,"普通高校全日制大学本科及以上","学士及以上",null,"林学、园林、森林保护","林木遗传育种、森林培育、森林保护学、森林经理学、野生动植物保护与利用、园林植物与观赏园艺、水土保持与荒漠化防治","不限","项目生岗不限户籍，其他岗位为通辽市户籍","最低服务期5年（含试用期）","否","\n0475-5212114","茂道吐林场（2人）朝鲁吐林场（2人）乌旦塔拉林场（2人）伊胡塔林场（2人）金宝屯林场（2人）大青沟林场（2人）。按总成绩从高分到低分的顺序考生自主选择具体单位。"]
[null,"公益一类","技术员2",6,null,null,6,null,"普通高校全日制大学专科及以上","不限","林业技术、园林技术、森林资源保护、自然保护区建设与管理、林业调查与信息处理、林业信息技术与管理","林学、园林、森林保护","林木遗传育种、森林培育、森林保护学、森林经理学、野生动植物保护与利用、园林植物与观赏园艺、水土保持与荒漠化防治","不限","通辽市户籍","最低服务期5年（含试用期）","否","\n0475-5212114","茂道吐林场（1人）朝鲁吐林场（1人）乌旦塔拉林场（1人）伊胡塔林场（1人）金宝屯林场（1人）大青沟林场（1人）按总成绩从高分到低分的顺序考生自主选择具体单位。"]
[null,"公益一类","职员1",15,null,15,null,null,"普通高校全日制大学本科及以上","学士及以上",null,"不限","不限","不限","项目生岗不限户籍，其他岗位为通辽市户籍","1.主要从事野外防火、病虫害防控监测、资源管理巡护等工作，建议男性报考；\n2.最低服务期5年（含试用期）","否","\n0475-5212114","伊胡塔林场（5人）金宝屯林场（5人）大青沟林场（5人）按总成绩从高分到低分的顺序考生自主选择具体单位。"]
[null,"公益一类","职员2",13,null,null,4,9,"普通高校全日制大学专科及以上","不限","不限","不限","不限","不限","通辽市户籍","1.主要从事野外防火、病虫害防控监测、资源管理巡护等工作，建议男性报考；\n2.最低服务期5年（含试用期）","否","\n0475-5212114","茂道吐林场（4人）朝鲁吐林场（4人）乌旦塔拉林场（5人）按总成绩从高分到低分的顺序考生自主选择具体单位。"]
[null,"公益一类","职员3",8,8,{"$nulls":3},"普通高校全日制大学专科及以上","不限","不限","不限","不限","不限","科左后旗户籍","1.主要从事野外防火、病虫害防控监测、资源管理巡护等工作，建议男性报考；\n2.最低服务期5年（含试用期）","否","\n0475-5212114","茂道吐林场（2人）朝鲁吐林场（2人）乌旦塔拉林场（1人）伊胡塔林场（1人）金宝屯林场（1人）大青沟林场（1人）按总成绩从高分到低分的顺序考生自主选择具体单位。"]
["后旗小计",null,null,{"$f":"SUM(D118:D123)","v":60},{"$f":"SUM(E118:E123)","v":8},{"$f":"SUM(F118:F123)","v":24},{"$f":"SUM(G118:G123)","v":19},{"$f":"SUM(H118:H123)","v":9}]
["科左中旗国际文化交流中心","公益一类","业务",1,null,1,null,null,"普通高校全日制大学本科及以上","学士及以上",null,"不限","不限","不限","不限","在科左中旗最低服务期限五年（含试用期）。","否","0475-3219902"]
["科左中旗人民政府办公室机关事务服务中心","公益一类","业务1",1,null,1,null,null,"普通高校全日制大学本科及以上","学士及以上",null,"金融学、金融工程、保险学、投资学、国际经济与贸易、贸易经济、经济学、经济统计学、财政学、税收学、金融数学、信用管理、经济与金融","国民经济学、区域经济学、 财政学（含∶税收学）、金融学（含∶保险学）、产业经济学、国际贸易学、劳动经济学、 统计学、数量经济学","不限","不限","在科左中旗最低服务期限五年（含试用期）。","否","0475-3219902"]
[null,null,"业务2",1,null,null,1,null,"普通高校全日制大学本科及以上","学士及以上",null,"金融学、金融工程、保险学、投资学、国际经济与贸易、贸易经济、经济学、经济统计学、财政学、税收学、金融数学、信用管理、经济与金融","国民经济学、区域经济学、 财政学（含∶税收学）、金融学（含∶保险学）、产业经济学、国际贸易学、劳动经济学、 统计学、数量经济学","不限","科左中旗户籍","在科左中旗最低服务期限五年（含试用期）。","否","0475-3219902"]
["科左中旗预算编审中心","公益一类","业务1",4,1,2,null,1,"普通高校全日制大学本科及以上","学士及以上",null,"金融学、金融工程、保险学、投资学、国际经济与贸易、贸易经济、经济学、经济统计学、财政学、税收学、金融数学、信用管理、经济与金融、会计学、财务管理、审计学、资产评估","国民经济学、区域经济学、 财政学（含∶税收学）、金融学（含∶保险学）、产业经济学、国际贸易学、劳动经济学、 统计学、数量经济学、会计学、企业管理（含：财务管理、市场营销、人力资源管理）","不限","除项目生岗，其他限科左中旗户籍","在科左中旗最低服务期限五年（含试用期）。","否","0475-3219902"]
[null,null,"业务2",1,null,null,1,null,"普通高校全日制大学本科及以上","学士及以上",null,"金融学、金融工程、保险学、投资学、国际经济与贸易、贸易经济、经济学、经济统计学、财政学、税收学、金融数学、信用管理、经济与金融、会计学、财务管理、审计学、资产评估","国民经济学、区域经济学、 财政学（含∶税收学）、金融学（含∶保险学）、产业经济学、国际贸易学、劳动经济学、 统计学、数量经济学、会计学、企业管理（含：财务管理、市场营销、人力资源管理）","不限","通辽市户籍","在科左中旗最低服务期限五年（含试用期）。","否","0475-3219902"]
["科左中旗城乡居民最低生活保障中心","公益一类","会计",1,null,1,null,null,"普通高校全日制大学本科及以上","学士及以上",null,"会计学、财务管理、审计学、资产评估、财政学","会计学、企业管理（含：财务管理、市场营销、人力资源管理）、 财政学（含∶税收学）","不限","不限","在科左中旗最低服务期限五年（含试用期）。","否","0475-3219902"]
["科左中旗蒙古语文事务中心","公益一类","翻译",2,{"$nulls":3},2,"普通高校全日制大学本科及以上","学士及以上",null,"中国少数民族语言文学（蒙古语）、蒙古语、应用语言学（蒙授）","中国少数民族语言文学（蒙古语）、语言学及应用语言学（蒙授）","不限","通辽市户籍","在科左中旗最低服务期限五年（含试用期）。","否","0475-3219902"]
["科左中旗公安局机关事务服务中心","公益一类","业务1",6,1,2,1,2,"普通高校全日制大学本科及以上","学士及以上",null,"体育教育、运动训练、社会体育指导与管理、武术与民族传统体育、运动人体科学、运动康复、休闲体育"," 体育人文社会学、 运动人体科学、 体育教育训练学、民族传统体育学","不限","除项目生岗，其他限通辽市户籍","限男性，30周岁及以下；身高170cm及以上。实际体重不超过标准体重25%，不低于标准体重15%；需参加体能测评；在科左中旗最低服务期限五年（含试用期）。","否","0475-3219902","资格复审与体检环节均测量身高体重。"]
[null,null,"业务2",10,2,3,2,3,"普通高校全日制大学本科及以上","不限",null,"不限","不限","不限","除项目生岗，其他限通辽市户籍","限男性，30周岁及以下；身高170cm及以上。实际体重不超过标准体重25%，不低于标准体重15%；需参加体能测评；在科左中旗最低服务期限五年（含试用期）。公安类院校毕业生以及退役士兵学历条件放宽至全日制大专及以上。","否","0475-3219902","资格复审与体检环节均测量身高体重。"]
[null,null,"业务3",2,null,null,1,1,"普通高校全日制大学本科及以上","学士及以上",null,"食品科学与工程、食品质量与安全、粮食工程、乳品工程、酿酒工程、食品卫生与营养学、食品营养与检验教育、化学工程与工艺、生物工程、化学工程与工业生物工程","食品科学、粮食、油脂及植物蛋白工程、农产品加工及贮藏工程、水产品加工及贮藏工程、生物化工、化学工程、化学工艺","不限","通辽市户籍","限女性，身高160cm以上。实际体重不超过标准体重25%，不低于标准体重15%；在科左中旗最低服务期限五年（含试用期）。","否","0475-3219902","资格复审与体检环节均测量身高体重。"]
[null,null,"业务4",2,null,null,1,1,"普通高校全日制大学本科及以上","学士及以上",null,"金融学、金融工程、保险学、投资学、金融数学、信用管理、经济与金融","金融学（含∶保险学）","不限","通辽市户籍","限女性，身高160cm以上。实际体重不超过标准体重25%，不低于标准体重15%；在科左中旗最低服务期限五年（含试用期）。","否","0475-3219902","资格复审与体检环节均测量身高体重。"]
["科左中旗劳动人事争议仲裁院","公益一类","业务",1,null,1,null,null,"普通高校全日制大学本科及以上","学士及以上",null,"法学、知识产权","法学理论、法律史、宪法学与行政法学、刑法学、民商法学(含：劳动法学、社会保障法学) 、诉讼法学、经济法学、 环境与资源保护法学、国际法学(含：国际公法、国际私法、国际经济法)、军事法学","不限","不限","在科左中旗最低服务期限五年（含试用期）。","否","0475-3219902"]
["科左中旗工伤保险中心","公益一类","业务",1,null,null,1,null,"普通高校全日制大学本科及以上","学士及以上",null,"计算机科学与技术、软件工程、网络工程、信息安全、物联网工程、数字媒体技术、智能科学与技术、空间信息与数字技术、电子与计算机工程、信息管理与信息系统、电子信息科学与技术、电子信息工程、电子科学与技术、通信工程、信息工程","计算机系统结构、计算机软件与理论、计算机应用技术电子科学与技术、信息与通信工程、通信与信息系统、信号与信息处理","不限","科左中旗户籍","在科左中旗最低服务期限五年（含试用期）。","否","0475-3219902"]
["科左中旗动物疫病预防控制中心","公益一类","业务",1,null,null,1,null,"普通高校全日制大学本科及以上","学士及以上",null,"动物科学、动物医学、动物药学、动植物检疫","动物学、动物遗传育种与繁殖、动物营养与饲料科学、草业科学、基础兽医学、预防兽医学、临床兽医学","不限","通辽市户籍","在科左中旗最低服务期限五年（含试用期）。","否","0475-3219902"]
["科左中旗水产站","公益一类","业务",1,1,{"$nulls":3},"普通高校全日制大学本科及以上","学士及以上",null,"水族科学与技术、水产养殖学、海洋渔业科学与技术","水生生物学、水产品加工及贮藏工程、水产养殖、捕捞学、渔业资源","不限","通辽市户籍","在科左中旗最低服务期限五年（含试用期）。","否","0475-3219902"]
["科左中旗动物卫生监督所","公益一类","业务",2,1,1,null,null,"普通高校全日制大学本科及以上","学士及以上",null,"动物科学、动物医学、动物药学、动植物检疫","动物学、动物遗传育种与繁殖、动物营养与饲料科学、草业科学、基础兽医学、预防兽医学、临床兽医学","不限","除项目生岗，其他限科左中旗户籍","在科左中旗最低服务期限五年（含试用期）。","否","0475-3219902"]
["科左中旗农牧机械监理站","公益一类","业务",1,null,null,1,null,"普通高校全日制大学本科及以上","学士及以上",null,"农业工程、农业机械化及其自动化、农业电气化、农业建筑环境与能源工程、农业水利工程","农业机械化工程、 农业水土工程、 农业生物环境与能源工程、农业电气化与自动化","不限","科左中旗户籍","在科左中旗最低服务期限五年（含试用期）。","否","0475-3219902"]
[null,null,"会计",1,{"$nulls":3},1,"普通高校全日制大学本科及以上","学士及以上",null,"会计学、财务管理、审计学、资产评估、财政学","会计学、企业管理（含：财务管理、市场营销、人力资源管理）、 财政学（含∶税收学）","不限","通辽市户籍","在科左中旗最低服务期限五年（含试用期）。","否","0475-3219902"]
["科左中旗农机管理站","公益一类","业务",2,null,1,null,1,"普通高校全日制大学本科及以上","学士及以上",null,"农业工程、农业机械化及其自动化、农业电气化、农业建筑环境与能源工程、农业水利工程","农业机械化工程、 农业水土工程、 农业生物环境与能源工程、农业电气化与自动化","不限","除项目生岗，其他限通辽市户籍","在科左中旗最低服务期限五年（含试用期）。","否","0475-3219902"]
["科左中旗白音塔拉动物防疫站","公益一类","业务",1,null,null,1,null,"普通高校全日制大学专科及以上","不限","畜牧兽医、动物医学、饲料与动物营养、畜牧工程技术、动物药学、动物防疫与检疫、动物医学检验技术","动物科学、动物医学、动物药学、动植物检疫","动物学、动物遗传育种与繁殖、动物营养与饲料科学、草业科学、基础兽医学、预防兽医学、临床兽医学","不限","通辽市户籍","在科左中旗最低服务期限五年（含试用期）。","否","0475-3219902"]
["科左中旗丰库动物防疫站","公益一类","业务",1,null,1,null,null,"普通高校全日制大学专科及以上","不限","畜牧兽医、动物医学、饲料与动物营养、畜牧工程技术、动物药学、动物防疫与检疫、动物医学检验技术","动物科学、动物医学、动物药学、动植物检疫","动物学、动物遗传育种与繁殖、动物营养与饲料科学、草业科学、基础兽医学、预防兽医学、临床兽医学","不限","不限","在科左中旗最低服务期限五年（含试用期）。","否","0475-3219902"]
["科左中旗珠日河动物防疫站","公益一类","业务",1,{"$nulls":3},1,"普通高校全日制大学专科及以上","不限","畜牧兽医、动物医学、饲料与动物营养、畜牧工程技术、动物药学、动物防疫与检疫、动物医学检验技术","动物科学、动物医学、动物药学、动植物检疫","动物学、动物遗传育种与繁殖、动物营养与饲料科学、草业科学、基础兽医学、预防兽医学、临床兽医学","不限","科左中旗户籍","在科左中旗最低服务期限五年（含试用期）。","否","0475-3219902"]
["科左中旗药械采购中心","公益一类","业务1",1,null,null,1,null,"普通高校全日制大学本科及以上","学士及以上",null,"制药工程、药学、 药物制剂、生物制药、药物分析、药物化学、药事管理、中药制药、中草药栽培与鉴定","药物化学、药剂学、生药学、药物分析学、微生物与生化药学、药理学","不限","通辽市户籍","在科左中旗最低服务期限五年（含试用期）。","否","0475-3219902"]
[null,null,"业务2",1,null,1,null,null,"普通高校全日制大学本科及以上","学士及以上",null,"计算机科学与技术、软件工程、网络工程、信息安全、物联网工程、数字媒体技术、智能科学与技术、空间信息与数字技术、电子与计算机工程、信息管理与信息系统、电子信息科学与技术、电子信息工程、电子科学与技术、通信工程、信息工程","计算机系统结构、计算机软件与理论、计算机应用技术电子科学与技术、信息与通信工程、通信与信息系统、信号与信息处理","不限","不限","在科左中旗最低服务期限五年（含试用期）。","否","0475-3219902"]
["科左中旗医疗保障事务中心","公益一类","业务",1,null,1,null,null,"普通高校全日制大学本科及以上","学士及以上",null,"汉语言文学、汉语言、汉语国际教育、秘书学、应用语言学","语言学及应用语言学、汉语言文字学、中国现当代文学、比较文学与世界文学","不限","不限","在科左中旗最低服务期限五年（含试用期）。","否","0475-3219902"]
["科左中旗应急事务服务中心","公益一类","业务",1,1,{"$nulls":3},"普通高校全日制大学本科及以上","学士及以上",null,"采矿工程、矿物加工工程、冶金工程、金属材料工程、矿物资源工程、消防工程、消防指挥、自动化","冶金物理化学、 钢铁冶金、有色金属冶金、采矿工程、矿物加工工程、 安全技术及工程","不限","通辽市户籍","在科左中旗最低服务期限五年（含试用期）。","否","0475-3219902"]
["科左中旗相关林场","公益一类","业务1",4,null,2,1,1,"普通高校全日制大学专科及以上","不限","不限","不限","不限","不限","除项目生岗，其他限通辽市户籍","限男性，在科左中旗最低服务期限五年（含试用期）。","否","0475-3219902","聘用后根据所有岗位考生的总成绩高低顺序进行选岗。协代林场、白音花林场、东苏林场、保康林场、乌斯吐林场、佳木斯林场、包罕林场、新开河林场各1人。"]
[null,null,"业务2",4,1,2,null,1,"普通高校全日制大学专科及以上","不限","不限","不限","不限","不限","除项目生岗，其他限通辽市户籍","限女性，在科左中旗最低服务期限五年（含试用期）。","否","0475-3219902"]
["科左中旗信访信息中心","公益一类","业务",1,null,1,null,null,"普通高校全日制大学本科及以上","学士及以上",null,"不限","不限","不限","不限","在科左中旗最低服务期限五年（含试用期）。","否","0475-3219902"]
["科左中旗政务服务中心","公益一类","业务",1,1,{"$nulls":3},"普通高校全日制大学本科及以上","学士及以上",null,"土木工程、建筑环境与能源应用工程、给排水科学与工程、建筑电气与智能化、工程造价、工程管理、房地产开发与管理","岩土工程、结构工程、市政工程、供热、供燃气、通风及空调工程、防灾减灾工程及防护工程、管理科学与工程","不限","通辽市户籍","在科左中旗最低服务期限五年（含试用期）。","否","0475-3219902"]
["科左中旗区域经济合作中心","公益一类","业务",1,null,1,null,null,"普通高校全日制大学本科及以上","学士及以上",null,"经济学、贸易经济、国际经济与贸易、国民经济管理、资源与环境经济学、商务经济学、能源经济、电子商务、电子商务及法律、经济与金融","国民经济学、区域经济学、产业经济学、国际贸易学、劳动经济学、数量经济学、技术经济及管理","不限","不限","在科左中旗最低服务期限五年（含试用期）。","否","0475-3219902"]
["科左中旗巴彦塔拉镇人民政府党群服务中心","公益一类","业务1",1,null,null,1,null,"普通高校全日制大学专科及以上","不限","国际贸易实务、国际经济与贸易、国际商务、服务外包、经济信息管理、报关与国际货运、商务经纪与代理、国际文化贸易","经济学、贸易经济、国际经济与贸易、国民经济管理、资源与环境经济学、商务经济学、能源经济","国民经济学、区域经济学、产业经济学、国际贸易学、劳动经济学、数量经济学","不限","科左中旗户籍","在科左中旗最低服务期限五年（含试用期）。","否","0475-3219902"]
[null,null,"业务2",1,null,1,null,null,"普通高校全日制大学专科及以上","不限","汉语、对外汉语、语文教育、文秘、文秘速录","汉语言文学、汉语言、汉语国际教育、秘书学、应用语言学","语言学及应用语言学、汉语言文字学、中国现当代文学、比较文学与世界文学","不限","不限","在科左中旗最低服务期限五年（含试用期）。","否","0475-3219902"]
["科左中旗巴彦塔拉镇人民政府综合保障和技术推广中心","公益一类","业务",2,null,null,1,1,"普通高校全日制大学专科及以上","不限","林业技术、园林技术、森林资源保护、经济林培育与利用、林业调查与信息处理、林业信息技术与管理、园艺技术","森林工程、园艺、林学、园林、森林保护、木材科学与工程、林产化工","森林工程、果树学、森林保护学、园林植物与观赏园艺、水土保持与荒漠化防治","不限","科左中旗户籍","在科左中旗最低服务期限五年（含试用期）。","否","0475-3219902"]
["科左中旗图布信苏木人民政府党群服务中心","公益一类","业务1",1,null,1,null,null,"国民教育序列大学专科及以上","不限","财务管理、会计、审计、会计信息管理、信息统计与分析、统计与会计核算","会计学、财务管理、审计学、资产评估、财政学、统计学、应用统计学","会计学、企业管理（含：财务管理、市场营销、人力资源管理）、 财政学（含∶税收学）、统计学","不限","不限","在科左中旗最低服务期限五年（含试用期）。","否","0475-3219902"]
[null,null,"业务2",1,null,null,1,null,"国民教育序列大学专科及以上","不限","财务管理、会计、审计、会计信息管理、信息统计与分析、统计与会计核算","会计学、财务管理、审计学、资产评估、财政学、统计学、应用统计学","会计学、企业管理（含：财务管理、市场营销、人力资源管理）、 财政学（含∶税收学）、统计学","不限","通辽市户籍","在科左中旗最低服务期限五年（含试用期）。","否","0475-3219902"]
["科左中旗图布信苏木人民政府综合行政执法局","公益一类","文秘",1,null,null,1,null,"国民教育序列大学专科及以上","不限","汉语、对外汉语、语文教育、文秘、文秘速录","汉语言文学、汉语言、汉语国际教育、秘书学、应用语言学","语言学及应用语言学、汉语言文字学、中国现当代文学、比较文学与世界文学","不限","科左中旗户籍","在科左中旗最低服务期限五年（含试用期）。","否","0475-3219902"]
["科左中旗图布信苏木人民政府综合保障和技术推广中心","公益一类","会计",2,1,1,null,null,"普通高校全日制大学专科及以上","不限","作物生产技术、种子生产与经营、设施农业与装备、现代农业技术、休闲农业、生态农业技术、园艺技术、植物保护与检疫技术、农产品加工与质量检测、绿色食品生产与检验、农资营销与服务、农产品流通与管理、农业装备应用技术、农业经济管理、农村经营管理、林业技术、园林技术、森林资源保护、经济林培育与利用、林业调查与信息处理、林业信息技术与管理、园艺技术、畜牧兽医、动物医学、动物药学、动物防疫与检疫、动物医学检验技术、畜牧工程技术、草业技术、畜牧业经济管理、水产养殖技术、水生动物医学、渔业经济管理","农学、园艺、植物保护、植物科学与技术、种子科学与工程、设施农业科学与工程、动物科学、动物医学、动物药学、林学、园林、森林保护、水产养殖学、草业科学、农艺教育、园艺教育、动植物检疫"," 作物栽培学与耕作学、作物遗传育种、果树学、蔬菜学、土壤学、植物营养学、 植物病理学、农业昆虫与害虫防治、农药学、动物遗传育种与繁殖、 动物营养与饲料科学、草业科学、基础兽医学、预防兽医学、 临床兽医学、 林木遗传育种、森林培育、森林保护学、森林经理学、园林植物与观赏园艺、水土保持与荒漠化防治、水产养殖、捕捞学、渔业资源","不限","除项目生岗，其他限通辽市户籍","在科左中旗最低服务期限五年（含试用期）。","否","0475-3219902"]
["科左中旗胜利乡人民政府党群服务中心","公益一类","业务1",2,1,1,null,null,"国民教育序列大学专科及以上","不限","计算机应用技术、计算机网络技术、计算机信息管理、计算机系统与维护、软件技术、软件与信息服务、数字展示技术、数字媒体应用技术、信息安全与管理、电子信息工程技术","计算机科学与技术、软件工程、网络工程、信息安全、物联网工程、数字媒体技术、智能科学与技术、空间信息与数字技术、电子与计算机工程、信息管理与信息系统、电子信息科学与技术、电子信息工程、电子科学与技术、通信工程、信息工程","计算机系统结构、计算机软件与理论、计算机应用技术电子科学与技术、信息与通信工程、通信与信息系统、信号与信息处理","不限","除项目生岗，其他限科左中旗户籍","在科左中旗最低服务期限五年（含试用期）。","否","0475-3219902"]
[null,null,"业务2",1,{"$nulls":3},1,"国民教育序列大学专科及以上","不限","计算机应用技术、计算机网络技术、计算机信息管理、计算机系统与维护、软件技术、软件与信息服务、数字展示技术、数字媒体应用技术、信息安全与管理、电子信息工程技术","计算机科学与技术、软件工程、网络工程、信息安全、物联网工程、数字媒体技术、智能科学与技术、空间信息与数字技术、电子与计算机工程、信息管理与信息系统、电子信息科学与技术、电子信息工程、电子科学与技术、通信工程、信息工程","计算机系统结构、计算机软件与理论、计算机应用技术电子科学与技术、信息与通信工程、通信与信息系统、信号与信息处理","不限","通辽市户籍","在科左中旗最低服务期限五年（含试用期）。","否","0475-3219902"]
["科左中旗白兴吐苏木人民政府党群服务中心","公益一类","会计1",1,null,1,null,null,"普通高校全日制大学专科及以上","不限","财务管理、会计、审计、会计信息管理、信息统计与分析、统计与会计核算","会计学、财务管理、审计学、资产评估、财政学、统计学、应用统计学","会计学、企业管理（含：财务管理、市场营销、人力资源管理）、 财政学（含∶税收学）、统计学","不限","不限","在科左中旗最低服务期限五年（含试用期）。","否","0475-3219902"]
[null,null,"会计2",2,null,null,1,1,"普通高校全日制大学专科及以上","不限","财务管理、会计、审计、会计信息管理、信息统计与分析、统计与会计核算","会计学、财务管理、审计学、资产评估、财政学、统计学、应用统计学","会计学、企业管理（含：财务管理、市场营销、人力资源管理）、 财政学（含∶税收学）、统计学","不限","科左中旗户籍","在科左中旗最低服务期限五年（含试用期）。","否","0475-3219902"]
["科左中旗白兴吐苏木人民政府综合行政执法局","公益一类","业务",1,1,{"$nulls":3},"普通高校全日制大学专科及以上","不限","安全健康与环保、化工安全技术、安全技术与管理、工程安全评价与监理、安全生产监测监控、生态农业技术、森林生态旅游、污染修复与生态工程技术","食品质量与安全、安全工程、生态学、环境生态工程、农业资源与环境、水土保持与荒漠化防治、野生动物与自然保护区管理、环保设备工程、生物工程、化学工程与工业生物工程、食品科学与工程","安全技术及工程、生态学、水土保持与荒漠化防治、生物化工、食品科学","不限","通辽市户籍","在科左中旗最低服务期限五年（含试用期）。","否","0475-3219902"]
["科左中旗白兴吐苏木人民政府综合保障和技术推广中心","公益一类","业务",1,null,1,null,null,"普通高校全日制大学专科及以上","不限","作物生产技术、种子生产与经营、设施农业与装备、现代农业技术、休闲农业、生态农业技术、园艺技术、植物保护与检疫技术、农产品加工与质量检测、绿色食品生产与检验、农资营销与服务、农产品流通与管理、农业装备应用技术、农业经济管理、农村经营管理、林业技术、园林技术、森林资源保护、经济林培育与利用、林业调查与信息处理、林业信息技术与管理、园艺技术、畜牧兽医、动物医学、动物药学、动物防疫与检疫、动物医学检验技术、畜牧工程技术、草业技术、畜牧业经济管理、水产养殖技术、水生动物医学、渔业经济管理","农学、园艺、植物保护、植物科学与技术、种子科学与工程、设施农业科学与工程、动物科学、动物医学、动物药学、林学、园林、森林保护、水产养殖学、草业科学、农艺教育、园艺教育、动植物检疫"," 作物栽培学与耕作学、作物遗传育种、果树学、蔬菜学、土壤学、植物营养学、 植物病理学、农业昆虫与害虫防治、农药学、动物遗传育种与繁殖、 动物营养与饲料科学、草业科学、基础兽医学、预防兽医学、 临床兽医学、 林木遗传育种、森林培育、森林保护学、森林经理学、园林植物与观赏园艺、水土保持与荒漠化防治、水产养殖、捕捞学、渔业资源","不限","不限","在科左中旗最低服务期限五年（含试用期）。","否","0475-3219902"]
["科左中旗协代苏木人民政府党群服务中心","公益一类","业务1",1,null,1,null,null,"普通高校全日制大学专科及以上","不限","国际贸易实务、国际经济与贸易、国际商务、服务外包、经济信息管理、报关与国际货运、商务经纪与代理、国际文化贸易","经济学、贸易经济、国际经济与贸易、国民经济管理、资源与环境经济学、商务经济学、能源经济","国民经济学、区域经济学、产业经济学、国际贸易学、劳动经济学、数量经济学","不限","不限","在科左中旗最低服务期限五年（含试用期）。","否","0475-3219902"]
[null,null,"业务2",1,{"$nulls":3},1,"普通高校全日制大学专科及以上","不限","旅游管理、景区开发与管理、休闲服务与管理、文化创意与策划、文化市场经营管理、公共文化服务与管理","文化产业管理、旅游管理、会展经济与管理、旅游管理与服务教育、","旅游管理","不限","通辽市户籍","在科左中旗最低服务期限五年（含试用期）。","否","0475-3219902"]
["科左中旗协代苏木人民政府综合行政执法局","公益一类","业务1",1,null,1,null,null,"普通高校全日制大学专科及以上","不限","安全健康与环保、化工安全技术、安全技术与管理、工程安全评价与监理、安全生产监测监控、生态农业技术、森林生态旅游、污染修复与生态工程技术","食品质量与安全、安全工程、生态学、环境生态工程、农业资源与环境、水土保持与荒漠化防治、野生动物与自然保护区管理、环保设备工程、生物工程、化学工程与工业生物工程、食品科学与工程","安全技术及工程、生态学、水土保持与荒漠化防治、生物化工、食品科学","不限","不限","在科左中旗最低服务期限五年（含试用期）。","否","0475-3219902"]
[null,null,"业务2",1,1,{"$nulls":3},"普通高校全日制大学专科及以上","不限","城乡规划、村镇建设与管理、城市信息化管理、建筑设计、建筑装饰工程技术、风景园林设计、园林工程技术","建筑学、城乡规划、风景园林、人文地理与城乡规划","建筑历史与理论、建筑设计及其理论、城市规划与设计(含：风景园林规划与设计）、建筑技术科学","不限","科左中旗户籍","在科左中旗最低服务期限五年（含试用期）。","否","0475-3219902"]
["科左中旗协代苏木人民政府综合保障和技术推广中心","公益一类","业务",2,1,null,null,1,"普通高校全日制大学专科及以上","不限","作物生产技术、种子生产与经营、设施农业与装备、现代农业技术、休闲农业、生态农业技术、园艺技术、植物保护与检疫技术、农产品加工与质量检测、绿色食品生产与检验、农资营销与服务、农产品流通与管理、农业装备应用技术、农业经济管理、农村经营管理、林业技术、园林技术、森林资源保护、经济林培育与利用、林业调查与信息处理、林业信息技术与管理、园艺技术、畜牧兽医、动物医学、动物药学、动物防疫与检疫、动物医学检验技术、畜牧工程技术、草业技术、畜牧业经济管理、水产养殖技术、水生动物医学、渔业经济管理","农学、园艺、植物保护、植物科学与技术、种子科学与工程、设施农业科学与工程、动物科学、动物医学、动物药学、林学、园林、森林保护、水产养殖学、草业科学、农艺教育、园艺教育、动植物检疫"," 作物栽培学与耕作学、作物遗传育种、果树学、蔬菜学、土壤学、植物营养学、 植物病理学、农业昆虫与害虫防治、农药学、动物遗传育种与繁殖、 动物营养与饲料科学、草业科学、基础兽医学、预防兽医学、 临床兽医学、 林木遗传育种、森林培育、森林保护学、森林经理学、园林植物与观赏园艺、水土保持与荒漠化防治、水产养殖、捕捞学、渔业资源","不限","通辽市户籍","在科左中旗最低服务期限五年（含试用期）。","否","0475-3219902"]
["科左中旗部分苏木乡镇人民政府党群服务中心","公益一类","业务1",8,1,4,1,2,"普通高校全日制大学专科及以上","不限","不限","不限","不限","不限","除项目生岗，其他限通辽市户籍","限男性，在科左中旗最低服务期限五年（含试用期）。","否","0475-3219902","聘用后根据所有岗位考生的总成绩高低顺序进行选岗。宝龙山镇1人、架玛吐镇1人、希伯花镇1人、腰林毛都镇2人、门达镇2人、代力吉镇3人、努日木镇1人、花胡硕苏木2人、敖包苏木2人。"]
[null,null,"业务2",7,1,3,1,2,"普通高校全日制大学专科及以上","不限","不限","不限","不限","不限","除项目生岗，其他限通辽市户籍","限女性，在科左中旗最低服务期限五年（含试用期）。","否","0475-3219902"]
["科左中旗部分苏木乡镇人民政府综合行政执法局","公益一类","业务1",5,1,2,1,1,"普通高校全日制大学专科及以上","不限","不限","不限","不限","不限","除项目生岗，其他限科左中旗户籍","限男性，在科左中旗最低服务期限五年（含试用期）。","否","0475-3219902","聘用后根据所有岗位考生的总成绩高低顺序进行选岗。架玛吐镇1人、门达镇2人、代力吉镇3人、努日木镇3人、胜利乡1人。"]
[null,null,"业务2",5,1,2,1,1,"普通高校全日制大学专科及以上","不限","不限","不限","不限","不限","除项目生岗，其他限科左中旗户籍","限女性，在科左中旗最低服务期限五年（含试用期）。","否","0475-3219902"]
[null,null,"业务3",5,1,2,1,1,"普通高校全日制大学专科及以上","不限","不限","不限","不限","不限","除项目生岗，其他限科左中旗户籍","限男性，在科左中旗最低服务期限五年（含试用期）。","否","0475-3219902","聘用后根据所有岗位考生的总成绩高低顺序进行选岗。宝龙山镇1人、希伯花镇2人、腰林毛都镇2人、花胡硕苏木3人、敖包苏木2人。"]
[null,null,"业务4",5,1,2,1,1,"普通高校全日制大学专科及以上","不限","不限","不限","不限","不限","除项目生岗，其他限科左中旗户籍","限女性，在科左中旗最低服务期限五年（含试用期）。","否","0475-3219902"]
["科左中旗部分苏木乡镇人民政府综合保障和技术推广中心","公益一类","业务1",3,1,1,null,1,"普通高校全日制大学专科及以上","不限","不限","不限","不限","不限","除项目生岗，其他限通辽市户籍","限男性，在科左中旗最低服务期限五年（含试用期）。","否","0475-3219902","聘用后根据所有岗位考生的总成绩高低顺序进行选岗。宝龙山镇2人、门达镇3人、胜利乡1。"]
[null,null,"业务2",3,null,1,1,1,"普通高校全日制大学专科及以上","不限","不限","不限","不限","不限","除项目生岗，其他限通辽市户籍","限女性，在科左中旗最低服务期限五年（含试用期）。","否","0475-3219902"]
["左中小计",null,null,{"$f":"SUM(D125:D181)","v":123},{"$f":"SUM(E125:E181)","v":21},{"$f":"SUM(F125:F181)","v":47},{"$f":"SUM(G125:G181)","v":25},{"$f":"SUM(H125:H181)","v":30}]
["扎鲁特旗电子商务管理服务中心","公益二类","技术员",1,1,{"$nulls":3},"普通高校全日制大学本科及以上","学士及以上",null,"电子信息科学与技术","电子科学与技术 ",null,"扎鲁特旗","最低服务期限3年（含试用期）","否","0475-7226445"]
["扎鲁特旗市场建设服务中心","公益一类","技术员",1,1,{"$nulls":3},"普通高校全日制大学本科及以上","学士及以上",null,"工商管理、财务管理、审计学、物业管理、会计学","工商管理、 会计学",null,"扎鲁特旗","最低服务期限3年（含试用期）","否","0475-7226445"]
["扎鲁特旗建设局机关事务服务中心","公益一类","技术员",1,1,{"$nulls":3},"普通高校全日制大学本科及以上","学士及以上",null,"工程造价、建筑学","建筑历史与理论、建筑设计及其理论、建筑技术科学",null,"扎鲁特旗","最低服务期限3年（含试用期）","否","0475-7226445"]
["扎鲁特旗物业服务中心","公益一类","技术员",1,1,{"$nulls":3},"国民教育序列大学专科及以上","不限","物业管理、物业设施管理、房地产经营与估价","物业管理、房地产开发与管理","不限",null,"扎鲁特旗","研究生学历报考本岗位，要求专科或本科所学专业满足相应专业栏要求；\n最低服务期限3年（含试用期）","否","0475-7226445"]
["扎鲁特旗图书馆","公益一类","技术员",1,1,{"$nulls":3},"普通高校全日制大学本科及以上","学士及以上",null,"计算机科学与技术、软件工程、网络工程、信息安全、物联网工程、数字媒体技术、智能科学与技术、空间信息与数字技术、电子与计算机工程","计算机科学与技术、 计算机系统结构、计算机软件与理论、计算机应用技术",null,"扎鲁特旗","最低服务期限3年（含试用期）","否","0475-7226445"]
["扎鲁特旗乌力格尔博物馆","公益一类","文物考古",1,null,1,null,null,"普通高校全日制大学本科及以上","学士及以上",null,"考古学、文物与博物馆学、文物保护技术","史学理论及史学史、考古学及博物馆学、中国古代史",null,"项目生岗不限户籍，其他岗位为通辽市户籍","最低服务期限3年（含试用期）、项目生岗位如达不到开考比例，调整到普通岗","否","0475-7226445"]
["扎鲁特旗南宝力皋吐博物馆","公益一类","文物考古",1,null,null,1,null,"普通高校全日制大学本科及以上","学士及以上",null,"考古学、文物与博物馆学、文物保护技术","史学理论及史学史、考古学及博物馆学、中国古代史",null,"通辽市","最低服务期限3年（含试用期）","否","0475-7226445"]
["扎鲁特旗信访接待中心","公益一类","技术员",1,1,{"$nulls":3},"普通高校全日制大学本科及以上","学士及以上",null,"财务管理、人力资源管理、汉语言文学、网络与新媒体","汉语言文字学",null,"通辽市","最低服务期限3年（含试用期）","否","0475-7226445"]
["扎鲁特旗农业技术推广中心","公益一类","技术员",1,1,{"$nulls":3},"普通高校全日制大学本科及以上","学士及以上",null,"农学、植物科学与技术、农业资源与环境、设施农业科学与工程","作物栽培学与耕作学、土壤学、农业昆虫与害虫防治",null,"通辽市","最低服务期限3年（含试用期）","否","0475-7226445"]
["扎鲁特旗畜牧工作站","公益一类","技术员",1,{"$nulls":3},1,"普通高校全日制大学本科及以上","学士及以上",null,"草业科学","草业科学",null,"扎鲁特旗","最低服务期限3年（含试用期）","否","0475-7226445"]
["扎鲁特旗新农村牧区建设指导服务中心","公益一类","技术员",1,1,{"$nulls":3},"普通高校全日制大学本科及以上","学士及以上",null,"农业水利工程、水利水电工程、水文与水资源工程","水文学及水资源、水利水电工程、农业水土工程",null,"通辽市","最低服务期限3年（含试用期）","否","0475-7226445"]
["扎鲁特旗政府机关事务服务中心","公益一类","文秘",1,1,{"$nulls":3},"普通高校全日制大学本科及以上","学士及以上",null,"新闻学、汉语言文学、秘书学","新闻学、汉语言文字学",null,"通辽市","最低服务期限3年（含试用期）、\n经常值夜班、承担下乡或外出任务，适合男性报考","否","0475-7226445"]
[null,null,"技术员",1,null,1,null,null,"普通高校全日制大学本科及以上","学士及以上",null,"法学","法学理论",null,"项目生岗不限户籍，其他岗位为通辽市户籍","最低服务期限3年（含试用期）、项目生岗位如达不到开考比例，调整到普通岗；\n经常值夜班、承担下乡或外出任务，适合男性报考","否","0475-7226445"]
["扎鲁特旗蒙古文政务网站管理中心","公益一类","文秘",1,1,{"$nulls":3},"普通高校全日制大学本科及以上","学士及以上",null,"新闻学、汉语言文学、秘书学","新闻学、汉语言文字学",null,"通辽市","最低服务期限3年（含试用期）；\n经常值夜班、承担下乡或外出任务，适合男性报考","否","0475-7226445"]
["扎鲁特旗接待服务中心","公益一类","文秘",1,1,{"$nulls":3},"普通高校全日制大学本科及以上","学士及以上",null,"新闻学、汉语言文学、秘书学","新闻学、汉语言文字学",null,"通辽市","最低服务期限3年（含试用期）；\n经常值夜班、承担下乡或外出任务，适合男性报考","否","0475-7226445"]
["扎鲁特旗水利工作队","公益一类","技术员",1,1,{"$nulls":3},"普通高校全日制大学专科及以上","不限","水文与水资源类、水利工程与管理类、水利水电设备类、水土保持与水环境类、工程测量技术、建筑工程管理、工程造价、工程监理、计算机应用技术、计算机信息管理、计算机网络技术","水利水电工程、水文与水资源工程、农业水利工程、水土保持与荒漠化防治、测绘工程、工程管理、工程造价、计算机科学与技术、软件工程、网络工程、信息安全","水文学及水资源、水力学及河流动力学、水工结构工程、水利水电工程、测绘科学与技术、计算机科学与技术、计算机系统结构、计算机软件与理论、计算机应用技术",null,"扎鲁特旗","最低服务期限3年（含试用期）","否","0475-7226445"]
["扎鲁特旗草原打井队","公益二类","技术员",1,1,{"$nulls":3},"普通高校全日制大学专科及以上","不限","水文与水资源类、水利工程与管理类、水利水电设备类、水土保持与水环境类、水文与工程地质、汉语、计算机应用技术、计算机信息管理、计算机网络技术","水利水电工程、水文与水资源工程、农业水利工程、水土保持与荒漠化防治、地下水科学与工程、汉语言文学、计算机科学与技术、软件工程、网络工程、信息安全","水文学及水资源、水力学及河流动力学、水工结构工程、水利水电工程、汉语言文字学、计算机科学与技术、 计算机系统结构、计算机软件与理论、计算机应用技术",null,"扎鲁特旗","最低服务期限3年（含试用期）","否","0475-7226445"]
["扎鲁特旗工商行政管理信息中心","公益一类","职员",1,1,{"$nulls":3},"普通高校全日制大学本科及以上","学士及以上",null,"社会学、社会工作、财务管理、会计学","社会学、会计学",null,"扎鲁特旗","最低服务期限3年（含试用期）","否","0475-7226445"]
["扎鲁特旗产品质量计量检测所","公益一类","职员",1,1,{"$nulls":3},"普通高校全日制大学本科及以上","学士及以上",null,"产品设计","设计艺术学",null,"扎鲁特旗","最低服务期限3年（含试用期）","否","0475-7226445"]
["扎鲁持旗食品药品检验检测中心","公益一类","技术员",1,null,1,null,null,"普通高校全日制大学本科及以上","学士及以上",null,"食品科学与工程 、食品质量与安全、食品卫生与营养学、安全科学与工程类、食品营养与检验教育","食品科学",null,"项目生岗不限户籍，其他岗位为扎鲁特旗户籍","最低服务期限3年（含试用期）、项目生岗位如达不到开考比例，调整到普通岗","否","0475-7226445"]
["扎鲁特旗能源发展服务中心","公益一类","技术员",2,1,1,null,null,"普通高校全日制大学本科及以上","学士及以上",null,"电气工程与智能控制、采矿工程、能源与动力工程、能源与环境系统工程、新能源科学与工程、电气工程及其自动化","电机与电器、电力系统及其自动化",null,"项目生岗不限户籍，其他岗位为通辽市户籍","\n最低服务期限3年（含试用期）、项目生岗位如达不到开考比例，调整到普通岗","否","0475-7226445"]
["扎鲁特旗财政投资评审中心","公益一类","财务",2,1,1,null,null,"普通高校全日制大学本科及以上","学士及以上",null,"财政学、经济学、经济统计学、金融学、金融工程","财政学、政治经济学、经济思想史、经济史、西方经济学、世界经济、人口、资源与环境经济学、国民经济学、区域经济学、金融学",null,"项目生岗不限户籍，其他岗位为通辽市户籍","最低服务期限3年（含试用期）、项目生岗位如达不到开考比例，调整到普通岗","否","0475-7226445"]
["扎鲁特旗矿产资源税费管理服务中心","公益一类","财务",2,null,1,1,null,"普通高校全日制大学本科及以上","学士及以上",null,"财政学、经济学、经济统计学、金融学、金融工程","财政学、政治经济学、经济思想史、经济史、西方经济学、世界经济、人口、资源与环境经济学、国民经济学、区域经济学、金融学",null,"项目生岗不限户籍，其他岗位为通辽市户籍","最低服务期限3年（含试用期）、项目生岗位如达不到开考比例，调整到普通岗","否","0475-7226445"]
["扎鲁特旗高技术煤化工产业园区服务中心","公益一类","专业技术1",1,{"$nulls":3},1,"国民教育序列大学专科及以上","不限","工业环保与安全技术、安全技术管理","安全工程","安全技术及工程",null,"通辽市","最低服务期限3年（含试用期）","否","0475-7226445"]
[null,"公益一类","专业技术2",1,1,{"$nulls":3},"国民教育序列大学专科及以上","不限","软件技术、计算机网络技术、计算机信息管理","计算机科学与技术、软件工程、 网络工程、","计算机科学与技术、 计算机系统结构、计算机软件与理论、计算机应用技术",null,"扎鲁特旗","最低服务期限3年（含试用期）","否","0475-7226445"]
[null,"公益一类","专业技术3",1,null,1,null,null,"国民教育序列大学专科及以上","不限","数控设备应用与维护、自动化生产设备应用","电气工程及其自动化、微机电系统工程、电气工程与智能控制","电机与电器、电力系统及其自动化",null,"项目生岗不限户籍，其他岗位为通辽市户籍","最低服务期限3年（含试用期）、项目生岗位如达不到开考比例，调整到普通岗","否","0475-7226445"]
["扎鲁特旗鲁北工业园区服务中心","公益一类","技术员",1,null,null,1,null,"国民教育序列大学专科及以上","不限","经济管理、国际经济与贸易、金融管理与实务、生物技术及应用、环境监测与治理技术、环境监测与评价、水环境监测与保护、财务管理、文秘","经济学、经济统计学、金融学、国际经济与贸易、贸易经济、汉语言文学、化学、应用化学、生物科学、环境科学与工程、环境工程、环境科学、财务管理、秘书学","国民经济学、产业经济学、金融学、汉语言文字学、有机化学、生物化学与分子生物学、环境科学、企业管理",null,"扎鲁特旗","最低服务期限3年（含试用期）","否","0475-7226445"]
["扎鲁特旗扎哈淖尔工业园区发展服务中心","公益一类","技术员",1,null,null,1,null,"普通高校全日制大学专科及以上","不限","财务管理、会计","财务管理、会计学","会计学  ",null,"通辽市","最低服务期限3年（含试用期）","否","0475-7226445"]
["扎鲁特旗巴彦芒哈林场","公益一类","技术员",3,1,2,null,null,"普通高校全日制大学本科及以上","学士及以上",null,"林学、森林保护、野生动物与自然保护区管理、草业科学、水土保持与荒漠化防治","林木遗传育种、森林培育、森林保护学、森林经理学、野生动植物保护与利用、园林植物与观赏园艺、水土保持与荒漠化防治",null,"项目生岗不限户籍，其他岗位为扎鲁特旗户籍","最低服务期限3年（含试用期）、项目生岗位如达不到开考比例，调整到普通岗为户籍为扎鲁特旗","否","0475-7226445"]
[null,null,"职员",1,1,{"$nulls":3},"普通高校全日制大学专科及以上","不限","不限","不限","不限",null,"扎鲁特旗","最低服务期限3年（含试用期）","否","0475-7226445"]
["扎鲁特旗鲁东生态林场","公益一类","职员",1,null,1,null,null,"普通高校全日制大学专科及以上","不限","不限","不限","不限",null,"项目生岗不限户籍，其他岗位为扎鲁特旗户籍","最低服务期限3年（含试用期）、项目生岗位如达不到开考比例，调整到普通岗","否","0475-7226445"]
["扎鲁特旗满都呼林场","公益一类","职员",1,null,null,1,null,"普通高校全日制大学专科及以上","不限","不限","不限","不限",null,"扎鲁特旗","最低服务期限3年（含试用期）","否","0475-7226445"]
["扎鲁特旗内蒙古罕山国家级自然保护区管理局","公益一类","技术员",4,null,2,null,2,"普通高校全日制大学本科及以上","学士及以上",null,"野生动物与自然保护区管理、森林保护学、动物医学、植物保护","野生动植物保护与利用、森林保护学、基础兽医学、预防兽医学、临床兽医学",null,"项目生岗不限户籍，其他岗位为通辽市户籍","最低服务期限3年（含试用期）、项目生岗位如达不到开考比例，调整到普通岗","否","0475-7226445"]
["扎鲁特旗地方道路管理段","公益一类","工程技术",2,{"$nulls":3},2,"国民教育序列大学专科及以上","不限","道路桥梁工程技术、工程造价","土木工程","岩土工程、结构工程",null,"扎鲁特旗","最低服务期限3年（含试用期）","否","0475-7226445"]
[null,"公益一类","工程机械",3,1,2,null,null,"国民教育序列大学专科及以上","不限","电气自动化技术、工程机械控制技术","电气工程及其自动化","电机与电器、电力系统及其自动化",null,"项目生岗不限户籍，其他岗位为扎鲁特旗户籍","最低服务期限3年（含试用期）、项目生岗位如达不到开考比例，调整到普通岗","否","0475-7226445"]
["扎鲁特旗香山镇党群服务中心","公益一类","秘书",1,null,1,null,null,"普通高校全日制大学本科及以上","学士及以上",null,"秘书学","不限",null,"项目生岗不限户籍，其他岗位为通辽市户籍","研究生学历报考本岗位，要求本科所学专业为秘书学；\n最低服务期限3年（含试用期）、项目生岗位如达不到开考比例，调整到普通岗","否","0475-7226445"]
["扎鲁特旗香山镇综合行政执法局","公益一类","法学",1,null,null,1,null,"普通高校全日制大学本科及以上","学士及以上",null,"法学     ","法学理论",null,"通辽市","最低服务期限3年（含试用期）","否","0475-7226445"]
[null,null,"秘书",1,1,{"$nulls":3},"普通高校全日制大学本科及以上","学士及以上",null,"秘书学","不限",null,"通辽市","研究生学历报考本岗位，要求本科所学专业为秘书学；\n最低服务期限3年（含试用期）","否","0475-7226445"]
["扎鲁特旗香山镇综合保障和技术推广中心","公益一类","技术员1",1,null,null,1,null,"普通高校全日制大学专科及以上","不限","市政工程技术       ","城市管理","城市规划与设计",null,"通辽市","最低服务期限3年（含试用期）","否","0475-7226445"]
[null,null,"技术员2",1,1,{"$nulls":3},"普通高校全日制大学专科及以上","不限","水利工程、水利工程施工技术","水利水电工程、水务工程","水利工程",null,"通辽市","最低服务期限3年（含试用期）","否","0475-7226445"]
["扎鲁特旗前德门苏木综合行政执法局","公益一类","职员",1,{"$nulls":3},1,"普通高校全日制大学本科及以上","学士及以上",null,"不限","不限",null,"扎鲁特旗","最低服务期限3年（含试用期）","否","0475-7226445"]
["扎鲁特旗黄花山镇党群服务中心","公益一类","财务",2,null,1,null,1,"普通高校全日制大学本科及以上","学士及以上",null,"会计学、财务管理","会计学",null,"项目生岗不限户籍，其他岗位为通辽市户籍","最低服务期限3年（含试用期）、项目生岗位如达不到开考比例，调整到普通岗","否","0475-7226445"]
[null,"公益一类","技术员",1,null,1,null,null,"普通高校全日制大学本科及以上","学士及以上",null,"汉语言文学、秘书学","汉语言文字学",null,"项目生岗不限户籍，其他岗位为通辽市户籍","最低服务期限3年（含试用期）、项目生岗位如达不到开考比例，调整到普通岗","否","0475-7226445"]
["扎鲁特旗黄花山镇综合行政执法局","公益一类","技术员",1,1,{"$nulls":3},"普通高校全日制大学本科及以上","学士及以上",null,"法学","法学理论",null,"通辽市","最低服务期限3年（含试用期）","否","0475-7226445"]
["扎鲁特旗阿日昆都楞镇党群服务中心","公益一类","技术员",2,{"$nulls":3},2,"普通高校全日制大学本科及以上","学士及以上",null,"会计学、财务管理、财政学、秘书学、财务会计教育","会计学",null,"扎鲁特旗","最低服务期限3年（含试用期）","否","0475-7226445"]
["扎鲁特旗巴彦塔拉苏木党群服务中心","公益一类","职员",1,null,null,1,null,"国民教育序列大学专科及以上","不限","不限","不限","不限",null,"扎鲁特旗","最低服务期限3年（含试用期）","否","0475-7226445"]
["扎鲁特旗巴彦塔拉苏木综合行政执法局","公益一类","职员",1,null,1,null,null,"国民教育序列大学专科及以上","不限","不限","不限","不限",null,"项目生岗不限户籍，其他岗位为扎鲁特旗户籍","最低服务期限3年（含试用期）、项目生岗位如达不到开考比例，调整到普通岗","否","0475-7226445"]
["扎鲁特旗巴彦塔拉苏木综合保障和技术推广中心","公益一类","职员",1,null,1,null,null,"国民教育序列大学专科及以上","不限","不限","不限","不限",null,"项目生岗不限户籍，其他岗位为扎鲁特旗户籍","最低服务期限3年（含试用期）、项目生岗位如达不到开考比例，调整到普通岗","否","0475-7226445"]
[null,"公益一类","技术员",1,1,{"$nulls":3},"普通高校全日制大学本科及以上","学士及以上",null,"动物科学","动物遗传育种与繁殖 ",null,"扎鲁特旗","最低服务期限3年（含试用期）","否","0475-7226445"]
["扎鲁特旗鲁北社区服务中心","公益一类","职员",1,null,null,1,null,"普通高校全日制大学专科及以上","不限","不限","不限","不限",null,"扎鲁特旗","最低服务期限3年（含试用期）","否","0475-7226445"]
["扎鲁特旗鲁北社区环境卫生所","公益二类","职员",1,null,null,1,null,"普通高校全日制大学专科及以上","不限","不限","不限","不限",null,"扎鲁特旗","最低服务期限3年（含试用期）","否","0475-7226445"]
["扎旗小计",null,null,{"$f":"SUM(D183:D233)","v":64},{"$f":"SUM(E183:E233)","v":25},{"$f":"SUM(F183:F233)","v":19},{"$f":"SUM(G183:G233)","v":10},{"$f":"SUM(H183:H233)","v":10}]
["政府部门合计",null,null,{"$f":"D66+D95+D117+D124+D182+D234","v":408},{"$f":"E66+E95+E117+E124+E182+E234","v":121},{"$f":"F66+F95+F117+F124+F182+F234","v":119},{"$f":"G66+G95+G117+G124+G182+G234","v":109},{"$f":"H66+H95+H117+H124+H182+H234","v":59}]